{"text_format":"1","workbook":"xlsx","n_sheets":13,"sheets":["Administration","Calculator","Sheet2","Calculation Worksheet Page 1","Calculation Worksheet Page 2","NAF","Lease","Occupancy Continuation Form 1","Occupancy Continuation Form 2","Payment Notification Approval","Rent Reasonableness","Notification of Annual Review","VAWA Lease Addendum"],"not_rendered":{"charts":0,"images":22,"macros":1,"external_links":0,"defined_names":11,"comments":0,"pivot_tables":0},"unopened":[],"bounds":{"document_bytes":16777216,"sheet_cells":100000,"rows_first":2000,"rows_last":500,"rows_between":2000,"halvings":0,"cell_chars":16384,"cell_head_chars":4096},"cells_cut":0,"cells_raw":0,"read":"whole","date_system":"1900"}

{"sheet":"Administration","index":0,"n_rows":453,"n_cols":16,"rows_kept":453,"cut":false,"hidden":false,"merged":[[457,0,457,12],[151,10,152,11],[139,2,139,3],[91,4,91,5],[149,3,149,4],[22,1,22,3],[25,2,25,3],[81,0,81,1],[100,6,100,7],[135,3,135,6],[116,8,116,9],[141,2,141,5],[133,3,133,4],[134,3,134,4],[138,2,138,3],[140,2,140,3],[143,2,143,3],[116,4,116,6],[122,2,122,4],[129,2,129,11],[149,9,149,10],[118,2,118,4],[123,2,123,4],[144,2,144,5],[117,2,117,4],[1,5,1,6],[1,7,1,8],[1,2,1,4],[101,2,101,3],[99,6,99,7],[100,2,100,3],[113,0,113,12],[7,5,7,7],[6,0,6,8],[7,1,7,4],[16,0,16,2],[20,1,20,8],[26,3,26,4],[34,0,34,12],[86,4,86,5],[64,9,64,10],[109,2,109,4],[77,0,77,12],[56,8,56,12],[57,8,57,12],[85,0,86,3],[103,2,103,3],[76,0,76,12],[68,8,68,12],[215,10,215,11],[237,10,237,11],[374,3,374,4],[287,0,287,1],[284,8,284,9],[283,2,283,4],[281,5,281,7],[285,5,285,7],[292,2,292,6],[292,11,292,12],[294,1,294,7],[332,2,332,7],[355,0,355,1],[350,3,350,5],[374,5,374,6],[374,7,374,8],[286,5,286,7],[285,8,285,9],[288,8,288,9],[285,0,285,1],[285,2,285,4],[286,8,286,9],[283,0,283,1],[239,10,239,11],[391,0,391,2],[385,5,392,6],[357,3,357,4],[310,2,310,7],[305,7,305,9],[306,7,306,9],[304,2,304,4],[306,2,306,4],[304,7,304,9],[307,2,307,9],[308,2,308,9],[313,6,313,7],[316,2,316,7],[315,2,315,7],[341,0,341,12],[355,2,355,3],[375,11,375,12],[375,9,375,10],[379,0,384,2],[241,1,241,8],[258,10,261,12],[267,1,267,4],[249,0,249,2],[394,0,394,2],[378,0,378,2],[357,0,357,1],[364,1,364,5],[148,3,148,4],[148,0,148,2],[149,6,149,7],[311,2,311,7],[305,2,305,4],[306,5,306,6],[214,4,214,8],[209,4,209,8],[210,4,210,8],[198,1,198,3],[152,8,152,9],[167,6,167,7],[207,0,209,2],[177,2,177,4],[175,2,175,6],[393,0,393,2],[394,7,394,8],[394,3,394,4],[375,5,375,6],[393,5,393,6],[146,3,146,4],[227,0,227,3],[233,0,233,3],[228,0,228,3],[168,2,168,4],[169,2,169,4],[184,2,184,6],[183,2,183,12],[215,4,215,8],[191,3,192,9],[210,10,210,11],[214,0,214,2],[147,0,147,2],[147,3,147,4],[174,2,174,12],[173,0,173,12],[176,2,176,3],[182,3,182,8],[166,6,166,7],[170,3,170,6],[214,10,214,11],[209,10,209,11],[187,3,187,5],[215,0,215,2],[393,3,393,4],[394,5,394,6],[385,7,392,8],[378,5,378,6],[376,7,377,8],[375,3,375,4],[378,7,378,8],[379,7,384,8],[379,5,384,6],[378,3,378,4],[375,7,375,8],[376,5,377,6],[8,2,8,5],[8,0,8,1],[15,0,15,1],[2,0,2,8],[4,2,4,4],[13,2,13,3],[402,9,402,10],[402,5,402,6],[400,7,400,8],[400,5,400,6],[396,7,396,8],[397,7,397,8],[397,9,397,10],[396,5,396,6],[396,9,396,10],[395,3,395,4],[395,5,395,6],[398,7,398,8],[402,3,402,4],[400,3,400,4],[397,3,397,4],[398,3,398,4],[397,5,397,6],[399,7,399,8],[106,8,106,9],[107,8,107,9],[96,6,96,7],[97,6,97,7],[102,6,102,7],[0,0,0,2],[10,1,10,3],[13,0,13,1],[14,0,14,1],[14,2,14,3],[32,0,32,12],[16,3,16,4],[28,2,28,5],[19,0,19,8],[17,3,17,5],[27,2,27,3],[29,3,29,4],[15,2,15,3],[21,2,21,8],[21,0,21,1],[25,0,25,1],[9,2,9,8],[3,3,3,4],[0,4,0,8],[250,0,250,2],[254,0,254,12],[237,1,237,8],[120,8,120,12],[132,3,132,5],[146,0,146,2],[168,6,168,7],[265,8,265,9],[256,7,256,8],[239,1,239,8],[240,1,240,8],[160,2,164,9],[188,5,188,9],[190,0,190,2],[169,6,169,7],[242,10,242,11],[238,10,238,11],[154,0,154,2],[136,3,136,4],[256,3,256,4],[244,5,244,6],[242,1,242,8],[131,3,131,5],[262,10,262,12],[264,8,264,9],[264,1,264,4],[258,8,261,9],[267,10,267,12],[268,10,268,12],[266,1,266,4],[262,1,262,4],[263,1,263,4],[266,10,266,12],[258,6,261,6],[264,10,264,12],[265,10,265,12],[258,1,261,4],[263,10,263,12],[263,8,263,9],[262,8,262,9],[265,1,265,4],[266,8,266,9],[267,8,267,9],[268,1,268,4],[286,2,286,4],[368,0,368,12],[370,9,373,10],[363,1,363,5],[376,3,377,4],[379,3,384,4],[374,11,374,12],[374,9,374,10],[376,0,377,2],[370,11,373,12],[370,5,373,6],[370,3,373,4],[378,9,378,10],[286,0,286,1],[305,5,305,6],[370,7,373,8],[335,0,335,1],[288,5,288,7],[32,15,32,17],[137,0,137,6],[124,2,124,5],[130,3,130,6],[166,2,166,4],[167,2,167,4],[33,0,33,12],[80,2,80,4],[79,2,79,3],[35,8,35,12],[36,8,36,12],[46,8,46,12],[47,8,47,12],[43,9,43,10],[106,0,106,1],[120,5,120,6],[149,0,149,2],[102,2,102,3],[142,2,142,3],[67,8,67,12],[98,6,98,7],[88,0,89,3],[80,0,80,1],[101,6,101,7],[234,0,234,3],[238,1,238,8],[287,8,287,9],[282,8,282,9],[283,5,283,7],[284,5,284,7],[283,8,283,9],[304,5,304,6],[296,0,296,12],[282,5,282,7],[282,2,282,4],[268,8,268,9],[258,7,261,7],[270,4,270,12],[288,0,288,1],[287,2,287,4],[288,2,288,4],[287,5,287,7],[282,0,282,1],[272,0,272,12],[284,2,284,4],[284,0,284,1],[271,4,271,12],[256,11,256,12],[52,9,52,10],[73,9,73,10],[110,2,110,4],[103,6,103,7],[240,10,240,11],[241,10,241,11],[258,5,261,5],[450,8,450,9],[452,8,452,9],[450,2,450,6],[439,4,439,6],[435,2,435,5],[431,1,431,2],[398,9,398,10],[399,9,399,10],[401,5,401,6],[401,9,401,10],[425,8,425,10],[401,7,401,8],[403,7,403,8],[403,5,403,6],[439,0,439,3],[403,9,403,10],[399,3,399,4],[444,0,444,3],[441,6,441,12],[448,0,448,12],[438,2,438,4],[442,0,442,3],[443,0,443,3],[398,5,398,6],[317,2,317,7],[369,9,369,10],[359,4,359,10],[360,4,360,9],[331,2,331,7],[352,5,353,12],[326,2,326,3],[344,1,344,2],[335,2,335,4],[369,1,369,2],[369,5,369,6],[322,2,322,7],[323,2,323,7],[337,0,337,1],[369,3,369,4],[369,7,369,8],[361,4,361,5],[394,9,394,10],[385,3,392,4],[376,9,377,10],[393,9,393,10],[393,7,393,8],[433,3,433,4],[437,2,437,6],[429,0,429,12],[405,1,405,2],[425,2,425,5],[409,6,409,7],[403,3,403,4],[385,9,392,10],[395,9,395,10],[400,9,400,10],[385,0,385,2],[387,0,387,2],[379,9,384,10],[389,0,389,2],[396,3,396,4],[399,5,399,6],[402,7,402,8],[395,7,395,8],[401,3,401,4]]}
["Fill in the highlighted areas",null,null,null,"Pre-populated fields will be highlighted in light gray"]
["Version 2.1",null,"PRA/SRA Tenant Workbook",null,null,"Todays Date:",null,{"$f":"TEXT(TODAY(), \"dddd\") &\", \" & TEXT(TODAY(), \"mm/dd/yyyy\")","v":"Monday, 04/01/2024"},null,null,null,null,null,null,"Clicking \"Clear All Data\" will erase all manually entered data in the administration tab"]
["Grant Information"]
["Federal Grant I.D./HUD Award No.:",null,null,null,null,null,null,null,null,null,null,null,null,null,"Clicking \"Clear All Check Boxes\"  Will uncheck all check boxes in each corresponding section"]
["Contract No.:"]
[null,null,null,null,null,null,null,null,null,null,null,"Information entered into these three sections will carry over to the following areas where appropriate:"]
["Tenant",null,null,null,null,null,null,null,null,null,null,{"$f":"1&\".\"","v":"1."},"Calculation Worksheet Page 1"]
["Name",null,null,null,null,null,null,null,null,null,null,{"$f":"2&\".\"","v":"2."},"Calculation Worksheet Page 2"]
["Street Address",null,null,null,null,null,null,null,null,null,null,{"$f":"3&\".\"","v":"3."},"New Admission Form"]
["Apt #",null,null,null,null,null,null,null,null,null,null,{"$f":"4&\".\"","v":"4."},"Lease"]
["City",null,null,null,null,null,null,null,null,null,null,{"$f":"5&\".\"","v":"5."},"Occupancy Continuation Form Page 1"]
["State",null,null,null,null,null,null,null,null,null,null,{"$f":"6&\".\"","v":"6."},"Occupancy Continuation Form Page 2"]
["Zip",null,null,null,null,null,null,null,null,null,null,{"$f":"7&\".\"","v":"7."},"Payment Notification Approval"]
["Telephone number",null,null,null,null,null,null,null,null,null,null,{"$f":"8&\".\"","v":"8."},"Rent Reasonableness "]
["Work Number",null,null,null,null,null,null,null,null,null,null,{"$f":"9&\".\"","v":"9."},"Notification of Annual Review "]
["Date of birth",null,null,null,null,null,null,null,null,null,null,{"$f":"10&\".\"","v":"10."},"Vawa Lease Addendum"]
["Social Security Number"]
["Tenant Account No:"]
[]
["Landlord"]
["Name"]
["Street Address"]
["City"]
["State"]
["Zip"]
[]
["Owner's Home/Business Phone: "]
["Owner's Business FAX:"]
["Owner's E-Mail:"]
["Owner's State of CT Supplier ID:"]
[]
[]
[" Calculation Worksheet           "]
["Page 1"]
[]
["Household Member #1",null,null,null,null,null,null,null,"Household Member #1 "]
[null,null,null,null,null,null,"Monthly",null,"Weekly Pay"]
["SSDI"]
["SSI",null,null,null,null,null,null,null,null,"Week 1 Pay"]
["TANF",null,null,null,null,null,null,null,null,"Week 2 Pay"]
["Earned Income",null,null,null,null,null,{"$f":"L45+L54","v":0},null,null,"Week 3 Pay"]
["SAGA",null,null,null,null,null,null,null,null,"Week 4 Pay"]
["Unemployment"]
["Child Support",null,null,null,null,null,null,null,null,"Total",null,{"$f":"SUM(L39:L42)","v":0}]
["Alimony",null,null,null,null,null,null,null,null,"Monthly Average",null,{"$f":"FLOOR(L44/4*52/12,1)","v":0}]
["VA Service- Connected Disability Compensation Income"]
["VA Non-Service Connected Disability Pension",null,null,null,null,null,null,null,"Household member #1"]
["Private Disability Insurance Income",null,null,null,null,null,null,null,"Bi-Weekly Pay"]
["Retirement Income from Social Security Income"]
["Pension/ Retirement Income from a former job",null,null,null,null,null,null,null,null,"Bi-Weekly 1st"]
["Worker's Compensation",null,null,null,null,null,null,null,null,"Bi-Weekly 2nd"]
["Other sources of Income"]
[null,null,null,null,null,null,null,null,null,"Total",null,{"$f":"SUM(L50:L51)","v":0}]
[null,null,null,null,null,"Total",{"$f":"SUM(G38:G52)","v":0}," ",null,"Monthly Average",null,{"$f":"FLOOR(L53/2*26/12,1)","v":0}]
[null,null,null,null,null,null,null,null,null,null,null,null,null,null,null,"Weekly and Bi-weekly income information will automatically carry over to line 41 EARNED INCOME"]
[null,null,null,null,null,null,null,null,null,null,null,null,null,null,null,"For household member #1, and Line 62 for household member #2"]
["Household Member #2",null,null,null,null,null,null,null,"Household Member #2"]
[null,null,null,null,null,null,"Monthly",null,"Weekly Pay"]
["SSDI"]
["SSI",null,null,null,null,null,null,null,null,"Week 1 Pay"]
["TANF",null,null,null,null,null,null,null,null,"Week 2 Pay"]
["Earned Income",null,null,null,null,null,{"$f":"L66+L75","v":0},null,null,"Week 3 Pay"]
["SAGA",null,null,null,null,null,null,null,null,"Week 4 Pay"]
["Unemployment"]
["Child Support",null,null,null,null,null,null,null,null,"Total",null,{"$f":"SUM(L60:L63)","v":0}]
["Alimony",null,null,null,null,null,null,null,null,"Monthly Average",null,{"$f":"FLOOR(L65/4*52/12,1)","v":0}]
["VA Service- Connected Disability Compensation Income"]
["VA Non-Service Connected Disability Pension",null,null,null,null,null,null,null,"Household member #2"]
["Private Disability Insurance Income",null,null,null,null,null,null,null,"Bi-Weekly Pay"]
["Retirement Income from Social Security Income"]
["Pension/ Retirement Income from a former job",null,null,null,null,null,null,null,null,"Bi-Weekly 1st"]
["Worker's Compensation",null,null,null,null,null,null,null,null,"Bi-Weekly 2nd"]
["Other sources of Income"]
[null,null,null,null,null,null,null,null,null,"Total",null,{"$f":"SUM(L71:L72)","v":0}]
[null,null,null,null,null,"Total",{"$f":"SUM(G59:G73)","v":0},null,null,"Monthly Average",null,{"$f":"FLOOR(L74/2*26/12,1)","v":0}]
[]
[" Calculation Worksheet           "]
["Page 2"]
[]
["Date"]
["Certificate Number"]
["# of bedrooms"]
["# of Dependents:"]
["# in Household:"]
[]
["For Child Care: (Costs which enable one or both parents to be gainfully employed)"]
[null,null,null,null,null,null,null,"Enter numerical values only."]
[]
["Non-reimbursed Medical Expenses in excess of 3% of Gross Income:"]
[]
[]
["Non-reimbursed Medical Expenses",null,null,null,null,null,null,"Enter numerical values only."]
[]
[]
["Allowance for Utilities and Other Services",null,null,null,"Indicate type of allowance",null,"Indicate amount of allowance"]
[]
["Heating:      Natural Gas/Bottle Gas/Oil/Electric"]
["Water Heat: Natural Gas/Bottle Gas/Oil/Electric"]
["Cooking:      Natural Gas/Bottle Gas/Oil/Electric"]
["Other Electric: Lighting, refrigeration, etc."]
[null,"Appliances:   ","Range       "]
[null,"Misc.:         ","Refrigerator"]
[null,null,"Water"]
[null,null,"Trash Collection"]
[]
[]
["Fair Market Rent",null,null,null,null,null,"Family Contribution",null,{"$f":"'Calculation Worksheet Page 2'!H42","v":0}]
["Contract Rent",null,null,null,null,null,"Subsidy Payment",null,{"$f":"'Calculation Worksheet Page 2'!H43","v":0}]
[]
["Preparer's Name:"]
[]
[]
[]
["New Admission Form"]
[]
["1. GRANT INFORMATION"]
["Federal Grant I.D./HUD Award No",null,null,null,{"$f":"D4","v":0},null,null,null,"SID NO.",null,22656]
["Contract No.:",null,{"$f":"C5","v":0},null,null,null,null,null,"Project No.",null,{"$f":"MID(C118, MIN(FIND({0,1,2,3,4,5,6,7,8,9}, C118&\"0123456789\", 8)), 5)","v":{"$error":"#VALUE!"}}]
[]
[]
[null,"   New Admission",null,null,null,"      Re-Certification",null,null,"   Current Participant New Address OR Unit"]
["2. TENANT INFORMATION"]
["Tenant Account No:",null,{"$f":"D18","v":0},null,null,null,"No of bedrooms:",null,{"$f":"C82","v":0}]
["Tenant Name:",null,{"$f":"B8","v":0}]
["Street Address:",null,{"$f":"C9","v":0}]
["City, State and Zip:",null,{"$f":"B10","v":0},null,{"$f":"B11","v":0},null,{"$f":"B12","v":0},null,{"$f":"B13","v":0}]
[null,null,"Apt #",null,"City",null,"State",null,"Zip"]
[]
["3. OWNER INFORMATION"]
["Owner Name:",null,{"$f":"B21","v":0}]
["Owner Street Address:",null,null,{"$f":"C22","v":0}]
["City, State and Zip:",null,null,{"$f":"B23","v":0},null,null,null,{"$f":"B24","v":0},null,{"$f":"B25","v":0}]
[null,null,null,"City",null,null,null,"State",null,"Zip"]
["Owner's Home/Business Phone: ",null,null,{"$f":"D27","v":0}]
["Owner's Business FAX:",null,null,{"$f":"C28","v":0}]
["Owner's E-Mail:",null,null,{"$f":"C29","v":0}]
["Owner's State of CT Supplier ID:",null,null,{"$f":"D30","v":0}]
["Owner's Type of Business (Check Only One):"]
[null,null,"Corporation"]
[null,null,"LLC Corporation"]
[null,null,"LLC Partnership"]
[null,null,"LLC Single member Entity"]
[null,null,"Non-Profit"]
[null,null,"Partnership"]
[null,null,"Individual/Sole Proprietor"]
["4. HAP CONTRACT INFORMATION"]
["Tenant's Payment:",null,null,{"$f":"I107","v":0}]
["Housing Assistance:",null,null,{"$f":"I108","v":0}]
["Contract Rent:",null,null,{"$f":"D147+D148","v":0}]
["Security Deposit:",null,null,null,null,null,"New",null,null,"Previously Paid"]
[]
[]
["Effective Dates of HAP Contract:",null,null,null,"From:",null,"To:",null,"No. of Months:"]
["5. PAYMENT STANDARD COMPLIANCE"]
[" Check Applicable"]
["a.","     Gross rent does not exceed Grant FMR and meets Rent Reasonableness Standards"]
["b.","     Gross rent exceeds Grant FMR but meets Rent Reasonableness Standards"]
[]
["(*By checking b, the local CoC Rental Assistance housing provider verifies that sufficient funds will be available to fulfill the original"]
["grant award obligation with grant award funds.)"]
[]
[]
[]
["COMMENTS:"]
[]
[]
["Submitted By:"]
[null,null,"Name",null,null,null,"Date"]
["Reviewed By:"]
[null,null,"Name",null,null,null,"Date"]
[]
[]
[]
["Lease"]
["Owner:",null,{"$f":"C130","v":0}]
["Tenant:",null,{"$f":"C124","v":0}]
["APT #",null,{"$f":"C126","v":0}]
["Street address:",null,{"$f":"C125","v":0}]
["City:",null,{"$f":"E126","v":0}]
["State:",null,{"$f":"G126","v":0}]
["Zip:",null,{"$f":"I126","v":0}]
[]
["Following furniture and appliances:"]
["Owner name:",null,{"$f":"C130","v":0}]
["Tenant name:",null,{"$f":"C124","v":0}]
["Lease start:",null,{"$f":"F153","v":"00:00:00"}]
["Lease ends:",null,{"$f":"H153","v":"00:00:00"}]
["Total number of Months:",null,null,{"$f":"K152","v":0}]
["Security Deposit:   The amount of security deposit paid by"]
["Security Deposit Amount:"]
[]
["Use of apartment by:"]
[]
["Utilities:"]
[]
["We will pay the utilities checked with “we” and you will pay the utilities checked "]
["with “you”."]
[]
["Utilities:","       Indicate WE or YOU"]
["General Electricity :"]
["Range:"]
["Hot Water:"]
["Heat:"]
["Cooking Fuel:"]
["Refuse Removal:"]
["Refrigerator:"]
[]
[{"$f":"C130","v":0}]
[]
[null,null,null,null,{"$f":"D131&\" \"&D132&\" \"&H132&\" \"&J132","v":"0 0 0 0"},null,null,null,null,null,{"$f":"D134","v":0}]
[null,"Our Name",null,null,"Address",null,null,null,null,null,"Phone"]
[]
["In case of emergency, you will contact the following person:"]
[]
[]
["Name",null,null,null,"Address",null,null,null,null,null,"Phone"]
[]
["We will maintain the apartment and all equipment provided with it, as well as "]
["common areas, facilities and equipment provided for your use and benefit, in "]
["compliance with Housing Quality Standards on the basis of which this Lease was "]
["approved by the DMHAS, and respond in a reasonable time to your calls for "]
["services consistent with said obligation.  Where applicable (as in case of multi-"]
["unit buildings), such maintenance with respect to common areas, facilities and "]
["equipment shall include cleaning, maintenance of lighting and equipment, "]
["maintenance of grounds, lawns and shrubs; and removal of snow and ice.  Where "]
["security equipment and services are to be provided by us, they are as follows:"]
[]
[]
["(Specify, or state “No schedule”)."]
[]
["Extermination services will be provided by us as conditions may require.  If such services "]
["are to be provided on a scheduled basis, the schedule is as follows:"]
[]
[]
["(Specify, or state “No schedule”)."]
[]
["Repairs:","We agree to complete the repairs listed below by the following dates:"]
["#1.",null,null,null,null,null,null,null,null,"#1."]
["#2.",null,null,null,null,null,null,null,null,"#2."]
["#3.",null,null,null,null,null,null,null,null,"#3."]
["#4.",null,null,null,null,null,null,null,null,"#4."]
["#5.",null,null,null,null,null,null,null,null,"#5."]
[null,"Repair",null,null,null,null,null,null,null,null,"Date"]
[]
["We hereby notify you that an operative fire sprinkler system (does/does not) "]
[]
[]
["If an operative fire sprinkler system exists at the apartment in accordance "]
["with the foregoing paragraph, its last day of maintenance and inspection was "]
[]
[]
[]
[]
[]
["Occupancy Continuation Form 1"]
[]
["Telephone Nos.  Home",null,null,{"$f":"C14","v":0},null,null,"Work",{"$f":"C15","v":0},null,null,"Date"]
[]
["Family","Name of Persons to Live in unit",null,null,null,"Relation to Family Head","Sex","Date of Birth","Student Yes/No",null,"Social Security #"]
["Member"]
["No."]
[]
["Head",{"$f":"B8","v":0},null,null,null,"Self",null,{"$f":"C16","v":"00:00:00"},null,null,{"$f":"D17","v":0}]
[2]
[3]
[4]
[5]
[6]
[7]
[]
["List any changes expected in household:"]
["List School(s) attended by Students:"]
[]
[]
[]
["GROSS INCOME AND EMPLOYMENT: List everyone who is receiving income and/or working."]
["You must include all income from employment, tips, TANF, pension, social security, unemployment "]
["compensation, alimony, child support, educational stipends, veterans’ benefits, SNAP, Medicare/Medicaid "]
["and/or any other public assistance.  "]
[]
["Family ",null,"Source of Income for"]
["Member No.",null,"All Family Members",null,null,"Amount",null,null,"Per"]
["Head"]
[]
[]
[]
[]
[]
[]
[]
["EMERGENCY CONTACT INFORMATION:  List person (family member, friend, sponsor, etc.) who you "]
["would like CoC Rental Assistance Program to contact in case of any emergencies."]
["Emergency Contact:",null,null,null,null,null,null,null,null,"Telephone #"]
[]
["Address:   "]
[]
["Occupancy Continuation Form 2"]
[null,null,null,null,null,null,null,null,null,null,null,null,null,null,null,"-"]
[]
["List all checking and savings accounts (including IRAs, Keogh accounts, and Certificate of Deposit). List the "]
["value of all stocks, bonds, trusts, pensions, or other assets owned by any household member."]
[]
["Family",null,"Bank Name",null,null,"Type of "]
["Member No.",null,"and Address",null,null,"Account",null,"Balance"]
["Head"]
[2]
[3]
["Yes",null,"Do you have expenses for child care of a child aged 12 or younger?"]
["No",null,"If yes, provide the name, address and telephone number of the care provider:"]
[]
[]
[]
[]
[null,null,"What is the weekly cost to you of the child care? "]
[]
[null,null,"Do you pay a care attendant or for any equipment for any handicapped or "]
[null,null,"disabled family member(s) necessary to permit that person or someone \telse in "]
[null,null,"the household to work? If so, what is the cost to you for the care attendant and/or "]
[null,null,"the equipment?  "]
[]
["Yes",null,"Do you have outstanding medical bills which you are paying? If yes list "]
["No",null,"them below."]
[]
[]
[]
[null,null,"What medical expenses do you expect to incur in the next twelve months?"]
[]
[]
[]
["Yes",null,"Do you have a conservator (of person or finances)?  If so please provide the "]
["No",null,"name, address and type of conservator:"]
[]
[]
[]
[]
["Tenant Signature:"]
[]
["Date:"]
[]
[]
[]
["Payment Notification Approval"]
[]
[]
["Date"]
[]
[{"$f":"Administration!C124","v":0}]
[{"$f":"C125&\" \"&Sheet2!J2&\" \"&Administration!C126","v":"0  0"}]
[{"$f":"Administration!E126&\" \"&Administration!G126&\" \"&Administration!I126","v":"0 0 0"}]
[]
["Head of household name:",null,null,{"$f":"B8","v":0}]
[]
["The Monthly Contract Rent for the unit rented from ",null,null,null,null,{"$f":"C130","v":0}]
[]
[]
["Term beginning",null,{"$f":"F153","v":"00:00:00"},null,"and ending",{"$f":"H153","v":"00:00:00"}]
[]
["Contract Rent is",null,{"$f":"C108","v":0},"Tenant portion is",null,{"$f":"I107","v":0}]
[]
["Name and title of housing staff filling out this form:"]
["Name of housing office"]
["Phone number of the staff filling out this form:"]
[]
["PC:"]
[]
[]
[]
[]
["Rent Reasonableness Checklist and Certification"]
["Name:",{"$f":"B8","v":0},null,"Proposed Unit",null,"Unit #1",null,"Unit #2",null,"Unit #3"]
["Address",null,null,{"$f":"C9&\" \"&Sheet2!J2&\" \"&B10&\" \"&B11&\" \"&B12&\" \"&B13","v":"     "}]
[]
[]
[]
["Number of bedrooms"]
["Square Feet"]
["Type of Unit/Construction"]
[]
["Housing Condition"]
["Location/Accessibility"]
[]
[]
[]
[]
[]
[]
[]
[]
[]
[]
[]
[]
[]
["Age in years"]
["Utilities (type)"]
[]
[]
[]
[]
[]
["Unit Rent",null,null,{"$f":"C108","v":0}]
["Utility Allowance",null,null,{"$f":"'Calculation Worksheet Page 2'!H39","v":0}]
["Gross Rent",null,null,{"$f":"SUM(D401:E402)","v":0},null,{"$f":"SUM(F401:G402)","v":0},null,{"$f":"SUM(H401:I402)","v":0},null,{"$f":"SUM(J401:K402)","v":0}]
["Handicap Accessible?"]
[]
[null,"CERTIFICATION:"]
[]
[null,"A.","Compliance with Payment Standard"]
[]
[null,{"$f":"D149","v":0},null,null,{"$f":"'Calculation Worksheet Page 2'!H39","v":0},null,{"$f":"B410+E410","v":0}]
[null,"Proposed Contract rent      +",null,null,"Utility Allowance =",null,"Proposed Gross Rent"]
[]
[null,"Approved rent does exceed Fair Market Rent (FMR) of",null,null,null,{"$f":"C107","v":0}]
[]
[]
[]
[null,"If the proposed gross rent exceeds the FMR is it less than or equal to the gross rent of "]
[null,"each comparable unit shown above?",null,null,"Indicate YES or NO"]
[]
[]
[null,"B.","Rent Reasonableness"]
[null,"Based upon a comparison with rents for comparable units, I have determined that the "]
[null,"proposed rent for the unit ",null,"     is","       is not reasonable"]
[]
[]
[null,"Name:",null,null,null,null,null,"Date:"]
[]
[]
[]
["Notification of Annual Review"]
[]
["Date"]
[]
["Indicate date that the lease expires:"]
[]
["Tenant Name:",null,{"$f":"B8&\",\"","v":","}]
[]
["Name of housing staff:"]
["Title of housing staff:"]
["Phone number of staff of staff filling out the form:"]
[]
[]
["Date of annual inspection:"]
["Time of annual inspection appointment:"]
["Day of the week of annual inspection:"]
[]
[]
[]
["VAWA Lease Addendum"]
[]
["Unit No. & Address",null,{"$f":"Administration!C9&\" \"&Sheet2!J2&\" \"&Administration!B10&\" \"&Administration!B11&\" \"&Administration!B12&\" \"&Administration!B13","v":"     "}]
[]
["Effective date of this Lease addendum is ",null,null,null,{"$f":"IF(Administration!F153<>\"\", Administration!F153, \"\")","v":""}]

{"sheet":"Calculator","index":1,"n_rows":71,"n_cols":30,"rows_kept":71,"cut":false,"hidden":false,"merged":[[0,22,0,30],[22,22,22,30],[1,0,2,27],[23,0,24,27],[16,0,16,6],[14,8,14,10],[0,19,0,20],[5,0,5,6],[4,0,4,6],[4,7,4,10],[16,8,16,10],[12,8,12,10],[7,17,7,21],[7,11,7,16],[9,19,9,20],[9,13,9,18],[42,36,42,38],[32,10,32,12],[26,7,26,10],[28,7,28,10],[30,14,30,17],[26,23,26,25],[28,23,28,25],[30,23,30,25],[32,23,32,25],[26,20,26,22],[32,19,32,22],[32,13,32,16],[5,7,5,10],[22,19,22,20],[28,20,28,22],[30,20,30,22],[47,0,47,3],[51,17,51,23],[45,0,46,3],[47,4,47,11],[45,12,46,16],[47,17,47,23],[49,0,50,3],[47,12,47,16],[45,17,46,23],[45,4,46,11],[49,4,50,11],[49,12,50,16],[49,17,50,23],[51,0,51,3],[51,4,51,11],[51,12,51,16],[53,29,54,34],[55,29,55,34],[45,29,46,34],[49,24,50,28],[49,29,50,34],[47,29,47,34],[45,24,46,28],[47,24,47,28],[51,24,51,28],[51,29,51,34],[55,0,55,3],[55,4,55,11],[55,12,55,16],[55,17,55,23],[55,24,55,28],[53,0,54,3],[53,4,54,11],[53,12,54,16],[53,17,54,23],[53,24,54,28],[68,12,69,18],[68,19,69,23],[68,24,69,29],[68,0,69,3],[68,4,69,11],[70,0,70,3],[70,4,70,11],[70,12,70,18],[70,19,70,23],[70,24,70,29],[66,24,66,29],[64,0,65,3],[64,4,65,11],[64,12,65,18],[64,19,65,23],[64,24,65,29],[66,0,66,3],[66,4,66,11],[66,12,66,18],[66,19,66,23],[60,24,61,29],[60,0,61,3],[60,4,61,11],[60,12,61,18],[60,19,61,23],[62,0,62,3],[62,4,62,11],[62,12,62,18],[62,19,62,23],[62,24,62,29]]}
["Pro-rate calculator:  move-in mid-month",null,null,null,null,null,null,null,null,null,null,null,null,null,null,null,null,null,null,null,null,"Todays Date:",{"$f":"TODAY()","v":"2024-04-01"}]
["Please Note: The #VALUE! error will be displayed in certain cells when the sections highlighted in yellow are left empty. This error will disappear, and the cells will show the appropriate values as soon as all necessary inputs are provided and calculations are completed."]
[]
[]
["Enter full contract rent:"]
["Enter full HAP amount:"]
[]
["The month and year the contract started is:",null,null,null,null,null,null,null,null,null,null,{"$f":"IF(ISBLANK(N10),\"\",DATE(YEAR(N10),MONTH(N10),1))","v":""}]
[]
["Enter full numerical date that the contract started:",null,null,null,null,null,null,null,null,null,null,null,null,null,null,null,null,null,null,{"$f":"IF(N10=\"\", \"\", IF(ISNUMBER(N10), IF(OR(DAY(N10)>31, MONTH(N10)>12, YEAR(N10)<1900, YEAR(N10)>9999), \"Invalid Date\", \"\"), \"Invalid Date\"))","v":""}]
["Example:  2/20/2024"]
[]
["Pro-Rated Contract Rent:",null,null,null,null,null,null,null,{"$f":"CEILING(Calculator!AD56,1)","v":{"$error":"#VALUE!"}}]
[]
["Pro-Rated Tenant Portion is: ",null,null,null,null,null,null,null,{"$f":"FLOOR(Calculator!AD52,1)","v":{"$error":"#VALUE!"}}]
[]
["Pro-Rated HAP amount is:",null,null,null,null,null,null,null,{"$f":"I13-I15","v":{"$error":"#VALUE!"}}]
[]
["Number of days the unit is occupied",null,null,null,null,null,null,null,null,null,{"$f":"Calculator!Y48","v":""}]
[]
[]
[]
["Pro-rate calculator:  move-out mid-month",null,null,null,null,null,null,null,null,null,null,null,null,null,null,null,null,null,null,null,null,"Todays Date:",{"$f":"TODAY()","v":"2024-04-01"}]
["Please Note: The #VALUE! error will be displayed in certain cells when the sections highlighted in yellow are left empty. This error will disappear, and the cells will show the appropriate values as soon as all necessary inputs are provided and calculations are completed."]
[]
[]
["Enter full contract rent:",null,null,null,null,null,null,null,null,null,null,null,null,null,null,null,null,null,null,null,"Pro-Rated Contract Rent is:",null,null,{"$f":"CEILING(Calculator!Y71,1)","v":{"$error":"#VALUE!"}}]
[]
["Enter full HAP amount:",null,null,null,null,null,null,null,null,null,null,null,null,null,null,null,null,null,null,null,"Pro-Rated Tenant Portion is:",null,null,{"$f":"FLOOR(Calculator!Y67,1)","v":{"$error":"#VALUE!"}}]
[]
["The move out date's corresponding month's first day is:",null,null,null,null,null,null,null,null,null,null,null,null,null,{"$f":"IF(ISBLANK(K33),\"\",DATE(YEAR(K33),MONTH(K33),1))","v":""},null,null,null,null,null,"Pro-Rated HAP amount is:",null,null,{"$f":"X27-X29","v":{"$error":"#VALUE!"}}]
[]
["Enter full numerical move out date:",null,null,null,null,null,null,null,null,null,null,null,null,{"$f":"IF(K33=\"\", \"\", IF(ISNUMBER(K33), IF(OR(DAY(K33)>31, MONTH(K33)>12, YEAR(K33)<1900, YEAR(K33)>9999), \"Invalid Date\", \"\"), \"Invalid Date\"))","v":""},null,null,null,null,null,"Number of days the unit is occupied",null,null,null,{"$f":"Calculator!T63","v":{"$error":"#VALUE!"}}]
["Example: 2/15/2024",null,null,null,null,null,null,null,null,null,null,null,null,{"$f":"IF(AND(ISNUMBER(O31),ISNUMBER(K33)),IF(OR(MONTH(O31)<>MONTH(K33),YEAR(O31)<>YEAR(K33)),\"Date Error\",\"\"),\"\")","v":""}]
[]
[]
[]
[{"$f":"Administration!A2","v":"Version 2.1"}]
[]
[]
[]
[]
[]
[]
[]
["HAP amount",null,null,null,"Month and year the contract started",null,null,null,null,null,null,null,"Days in month",null,null,null,null,"Date the lease and contract started ",null,null,null,null,null,null,"Number of days the unit is occupied",null,null,null,null,"Pro-Rated HAP amount"]
[]
[{"$f":"Calculator!H6","v":0},null,null,null,{"$f":"IF(Calculator!L8<>\"\",Calculator!L8,\"\")","v":""},null,null,null,null,null,null,null,{"$f":"DAY(EOMONTH(E48,0))","v":{"$error":"#VALUE!"}},null,null,null,null,{"$f":"IF(Calculator!N10<>\"\",Calculator!N10,\"\")","v":""},null,null,null,null,null,null,{"$f":"IF(ISNUMBER(R48), EOMONTH(R48,0)-R48+1, \"\")","v":""},null,null,null,null,{"$f":"IF(OR(ISBLANK(A48), ISBLANK(M48), ISBLANK(Y48), NOT(ISNUMBER(A48)), NOT(ISNUMBER(M48)), NOT(ISNUMBER(Y48)), M48=0), \"\", IFERROR(A48/M48*Y48, \"\"))","v":{"$error":"#VALUE!"}}]
[]
["Tenant Portion ",null,null,null,"Month and year the contract started",null,null,null,null,null,null,null,"Days in month",null,null,null,null,"Date the lease and contract started ",null,null,null,null,null,null,"Number of days the unit is occupied",null,null,null,null,"Pro-Rated Tenant Portion"]
[]
[{"$f":"Calculator!H5-Calculator!H6","v":0},null,null,null,{"$f":"IF(Calculator!L8<>\"\",Calculator!L8,\"\")","v":""},null,null,null,null,null,null,null,{"$f":"DAY(EOMONTH(E52,0))","v":{"$error":"#VALUE!"}},null,null,null,null,{"$f":"IF(Calculator!N10<>\"\",Calculator!N10,\"\")","v":""},null,null,null,null,null,null,{"$f":"IF(ISNUMBER(R52), EOMONTH(R52,0)-R52+1, \"\")","v":""},null,null,null,null,{"$f":"IF(OR(ISBLANK(A52), ISBLANK(M52), ISBLANK(Y52), NOT(ISNUMBER(A52)), NOT(ISNUMBER(M52)), NOT(ISNUMBER(Y52)), M52=0), \"\", IFERROR(A52/M52*Y52, \"\"))","v":{"$error":"#VALUE!"}}]
[]
["Contract Rent",null,null,null,"Month and year the contract started",null,null,null,null,null,null,null,"Days in month",null,null,null,null,"Date the lease and contract started ",null,null,null,null,null,null,"Number of days the unit is occupied",null,null,null,null,"Pro-Rated Contract Rent"]
[]
[{"$f":"Calculator!H5","v":0},null,null,null,{"$f":"Calculator!L8","v":""},null,null,null,null,null,null,null,{"$f":"DAY(EOMONTH(E56,0))","v":{"$error":"#VALUE!"}},null,null,null,null,{"$f":"Calculator!N10","v":"00:00:00"},null,null,null,null,null,null,{"$f":"IF(ISNUMBER(R56), EOMONTH(R56,0)-R56+1, \"\")","v":32},null,null,null,null,{"$f":"IF(OR(ISBLANK(A56), ISBLANK(M56), ISBLANK(Y56), NOT(ISNUMBER(A56)), NOT(ISNUMBER(M56)), NOT(ISNUMBER(Y56)), M56=0), \"\", IFERROR(A56/M56*Y56, \"\"))","v":{"$error":"#VALUE!"}}]
[]
[]
[]
[]
["HAP amount",null,null,null,"Move in date",null,null,null,null,null,null,null,"Move out date",null,null,null,null,null,null,"Number of days the unit is occupied",null,null,null,null,"Pro-Rated Contract Rent"]
[]
[{"$f":"Calculator!H29","v":0},null,null,null,{"$f":"IF(Calculator!O31<>\"\",Calculator!O31,\"\")","v":""},null,null,null,null,null,null,null,{"$f":"IF(Calculator!K33<>\"\",Calculator!K33,\"\")","v":""},null,null,null,null,null,null,{"$f":"(M63-E63)+1","v":{"$error":"#VALUE!"}},null,null,null,null,{"$f":"(A63/DAY(EOMONTH(E63,0)))*T63","v":{"$error":"#VALUE!"}}]
[]
["Tenant portion",null,null,null,"Move in date",null,null,null,null,null,null,null,"Move out date",null,null,null,null,null,null,"Number of days the unit is occupied",null,null,null,null,"Pro-Rated Tenant Portion"]
[]
[{"$f":"Calculator!H27-Calculator!H29","v":0},null,null,null,{"$f":"IF(Calculator!O31<>\"\",Calculator!O31,\"\")","v":""},null,null,null,null,null,null,null,{"$f":"IF(Calculator!K33<>\"\",Calculator!K33,\"\")","v":""},null,null,null,null,null,null,{"$f":"(M67-E67)+1","v":{"$error":"#VALUE!"}},null,null,null,null,{"$f":"(A67/DAY(EOMONTH(E67,0)))*T67","v":{"$error":"#VALUE!"}}]
[]
["Contract Rent",null,null,null,"Move in date",null,null,null,null,null,null,null,"Move out date",null,null,null,null,null,null,"Number of days the unit is occupied",null,null,null,null,"Pro-Rated Contract Rent"]
[]
[{"$f":"Calculator!H27","v":0},null,null,null,{"$f":"IF(Calculator!O31<>\"\",Calculator!O31,\"\")","v":""},null,null,null,null,null,null,null,{"$f":"IF(Calculator!K33<>\"\",Calculator!K33,\"\")","v":""},null,null,null,null,null,null,{"$f":"(M71-E71)+1","v":{"$error":"#VALUE!"}},null,null,null,null,{"$f":"(A71/DAY(EOMONTH(E71,0)))*T71","v":{"$error":"#VALUE!"}}]

{"sheet":"Sheet2","index":2,"n_rows":477,"n_cols":16,"rows_kept":477,"cut":false,"hidden":true,"merged":[]}
[]
["2024-03-06T09:34:19",null,null,null,null,"2023-11-16T11:49:12",null,"2023-11-16T11:49:34",null,{"$f":"IF(Administration!B10<>\"\",\"Apt #\",\"\")","v":""}]
["Grant Information"]
["Fed ID",null,null,"2024-03-14T09:42:22"]
["2023-12-28T08:45:57",null,"2024-03-14T09:42:22"]
["HMIS",null,"2023-12-14T14:27:28",null,null,null,null,null,null,null,null,"2024-01-05T12:19:45"]
[null,null,null,null,null,null,null,null,null,null,null,null,"2024-01-19T11:18:41"]
["Tenant","2024-03-14T09:42:22",null,null,null,null,null,null,null,null,null,null,"2024-01-19T11:18:49"]
["name","2024-01-03T11:29:47","2024-03-14T09:42:23",null,null,"2023-11-03T12:12:55","2023-10-16T14:01:06",null,"2023-11-20T14:52:33"]
["address","2024-03-14T09:42:23","2023-12-14T14:27:36"]
["address","2024-03-14T09:42:23"]
["address","2024-03-14T09:42:23",null,null,null,null,null,null,null,null,null,null,"2024-01-19T14:34:35"]
["address","2024-03-14T09:42:23"]
["address","2023-12-14T14:27:50","2024-03-14T09:42:24",null,null,null,null,null,null,null,null,null,"2023-11-02T13:48:40"]
["number",null,"2024-03-14T09:42:24"]
["work number",null,"2024-03-14T09:42:24"]
["dob",null,"2023-12-14T14:27:55","2024-03-14T09:42:24",null,null,null,null,null,null,null,"2023-12-12T12:12:03","2023-12-12T12:12:14"]
["ssn",null,null,"2024-03-14T09:42:24"]
["tenant acc #",null,null,"2023-12-14T14:28:04"]
[]
["landlord","2024-03-14T09:42:25"]
["name","2023-12-14T14:28:10","2024-03-14T09:42:25"]
["address","2024-03-14T09:42:25","2023-12-14T14:28:14"]
["address","2024-03-14T09:42:25"]
["address","2024-03-14T09:42:26"]
["address","2023-12-14T14:28:23"]
[null,null,null,"2024-03-14T09:42:26"]
["phone",null,"2024-03-14T09:42:26","2023-12-14T14:28:27"]
["fax",null,"2024-03-14T09:42:26"]
["email",null,"2023-12-22T09:43:34","2024-03-14T09:42:27"]
["supplier id",null,null,"2023-12-14T14:28:41"]
[]
[]
[]
[]
[]
[]
[null,null,null,null,null,null,"2024-03-13T14:34:31"]
[null,null,null,null,null,null,"2024-03-13T14:34:31",null,null,null,null,"2024-03-13T14:34:31"]
[null,null,null,null,null,null,"2024-03-13T14:34:32",null,null,null,null,"2024-03-13T14:34:32"]
[null,null,null,null,null,null,"2023-11-03T11:00:30",null,null,null,null,"2024-03-13T14:34:32"]
[null,null,null,null,null,null,"2024-03-13T14:34:32",null,null,null,null,"2024-03-13T14:34:33"]
[null,null,null,null,null,null,"2024-03-13T14:34:33",null,null,null,null,"2023-11-03T11:00:31"]
[null,null,null,null,null,null,"2024-03-13T14:34:33",null,null,null,null,"2024-01-17T14:42:20"]
[null,null,null,null,null,null,"2024-03-13T14:34:35"]
[null,null,null,null,null,null,"2024-03-13T14:34:35"]
[null,null,null,null,null,null,"2024-03-13T14:34:35"]
[null,null,null,null,null,null,"2024-03-13T14:34:35"]
[null,null,null,null,null,null,"2024-03-13T14:34:36"]
[null,null,null,null,null,null,"2024-03-13T14:34:36",null,null,null,null,"2024-03-13T14:34:36"]
[null,null,null,null,null,null,"2024-03-13T14:34:36",null,null,null,null,"2024-03-13T14:34:37"]
[null,null,null,null,null,null,"2024-03-13T14:34:37",null,null,null,null,"2023-12-14T14:28:54"]
[null,null,null,null,null,null,"2023-11-03T11:00:34"]
[]
[null,null,null,null,null,null,null,null,null,null,null,null,null,null,null,"2024-01-05T12:56:10"]
[null,null,null,null,null,null,null,null,null,null,null,null,null,null,null,"2024-01-05T12:56:21"]
[]
[]
[null,null,null,null,null,null,"2024-03-13T14:34:37"]
[null,null,null,null,null,null,"2024-03-13T14:34:37",null,null,null,null,"2024-03-13T14:34:38"]
[null,null,null,null,null,null,"2024-03-13T14:34:38",null,null,null,null,"2024-03-13T14:34:38"]
[null,null,null,null,null,null,"2023-11-03T11:00:35",null,null,null,null,"2024-03-13T14:34:38"]
[null,null,null,null,null,null,"2024-03-13T14:34:40",null,null,null,null,"2024-03-13T14:34:40"]
[null,null,null,null,null,null,"2024-03-13T14:34:40",null,null,null,null,"2023-11-03T11:00:36"]
[null,null,null,null,null,null,"2024-03-13T14:34:40"]
[null,null,null,null,null,null,"2024-03-13T14:34:41"]
[null,null,null,null,null,null,"2024-03-13T14:34:41"]
[null,null,null,null,null,null,"2024-03-13T14:34:41"]
[null,null,null,null,null,null,"2024-03-13T14:34:41"]
[null,null,null,null,null,null,"2024-03-13T14:34:42"]
[null,null,null,null,null,null,"2024-03-13T14:34:42",null,null,null,null,"2024-03-13T14:34:42"]
[null,null,null,null,null,null,"2024-03-13T14:34:42",null,null,null,null,"2024-03-13T14:34:43"]
[null,null,null,null,null,null,"2024-03-13T14:34:44",null,null,null,null,"2023-12-14T14:29:03"]
[null,null,null,null,null,null,"2023-11-03T11:00:39"]
[]
[]
[]
[]
[]
[null,"Calculation worksheet page 2","2024-03-13T14:34:49"]
[null,null,"2024-03-13T14:35:09"]
[null,null,"2024-03-13T14:34:59"]
[null,null,"2024-03-13T14:35:00"]
[null,null,"2024-03-13T14:35:01"]
[null,null,"2023-12-14T14:29:20"]
[]
[null,null,null,null,"2024-03-13T14:35:05"]
[null,null,null,null,"2023-12-14T14:29:24",null,null,"2023-11-03T10:53:51"]
[]
[]
[]
[null,null,null,null,"2024-03-13T14:35:05"]
[null,null,null,null,"2023-12-14T14:29:26",null,null,"2023-10-24T13:28:12"]
[]
[]
[]
[null,null,null,null,"2024-03-13T14:35:18",null,"2024-03-13T14:35:19"]
[null,null,null,null,"2024-03-13T14:35:22",null,"2024-03-13T14:35:25"]
[null,null,null,null,"2024-03-13T14:35:22",null,"2024-03-13T14:35:25"]
[null,null,null,null,"2024-03-13T14:35:22",null,"2024-03-13T14:35:25"]
[null,null,null,null,"2024-03-13T14:35:22",null,"2024-03-13T14:35:25"]
[null,"2024-01-18T12:53:08",null,null,"2024-03-13T14:35:22",null,"2024-03-13T14:35:25"]
[null,null,null,null,"2024-03-13T14:35:22",null,"2024-03-13T14:35:25"]
[null,null,null,null,"2024-03-13T14:35:22",null,"2024-03-13T14:35:25"]
[null,null,null,null,"2023-12-14T14:29:33",null,"2023-12-14T14:29:38"]
[]
[null,null,"2024-03-13T14:35:29"]
[null,null,"2024-03-13T14:35:31"]
[null,null,"2023-12-14T14:29:46"]
[null,null,"2024-03-13T14:35:33"]
["2023-12-28T08:40:11",null,"2023-12-28T09:22:26"]
[]
[]
[]
[]
[]
[]
[]
[]
["2023-11-03T11:00:53",null,null,null,"2023-11-03T11:00:53",null,null,"2023-11-03T11:00:53"]
[]
[]
[]
[]
[]
[]
[]
[]
[]
[]
[]
[]
[]
[]
[]
[]
[]
[null,"2023-11-03T11:00:53"]
[null,"2023-11-03T11:00:54"]
[null,"2023-11-03T11:00:54"]
[null,"2023-11-03T11:00:54"]
[null,"2023-11-03T11:00:55"]
[null,"2023-11-03T11:00:56"]
[null,"2023-11-03T11:00:56"]
[]
[]
[]
[null,null,"NAF"]
[null,null,null,"2024-01-09T13:53:39"]
[null,null,null,"2024-03-14T09:42:36",null,null,null,null,null,null,"2024-01-09T13:53:49"]
[null,null,null,null,null,"2024-01-09T13:53:43",null,"2024-01-09T13:53:45"]
["2024-03-04T13:19:16",null,null,null,"2024-03-04T13:19:27",null,"2024-03-04T13:19:41",null,null,null,"2024-03-14T09:42:40"]
["2024-03-04T13:18:04",null,null,null,"2024-03-04T13:17:58","2024-03-14T09:42:38",null,"2024-03-14T09:42:39","2024-03-04T13:26:34"]
["2024-03-06T13:55:42"]
["2024-03-06T13:55:42",null,"2024-03-04T13:41:24"]
["2024-03-06T13:55:42","2024-03-06T13:55:42"]
["2024-03-06T13:55:42","2024-03-06T13:55:42","2024-03-01T09:34:02",null,null,null,"2024-03-01T09:34:02"]
["2024-03-01T09:34:02",null,null,null,null,null,null,null,{"$f":"D4","v":"2024-03-14T09:42:22"},{"$f":"C10","v":"2023-12-14T14:27:36"},{"$f":"D18","v":"2024-03-14T09:42:24"}]
["2024-03-06T13:55:42",null,"2024-03-01T09:34:02",null,null,null,"2024-03-01T09:34:02",null,{"$f":"C5","v":"2024-03-14T09:42:22"},null,{"$f":"D19","v":"2023-12-14T14:28:04"}]
["2024-03-06T13:55:42",null,null,null,null,null,null,null,{"$f":"C6","v":"2023-12-14T14:27:28"}]
[null,null,"2024-03-14T09:42:47",null,null,null,null,null,{"$f":"B9","v":"2024-01-03T11:29:47"}]
[null,null,null,null,null,null,null,null,null,null,{"$f":"D28","v":"2023-12-14T14:28:27"}]
[null,null,null,null,null,null,null,null,{"$f":"B11","v":"2024-03-14T09:42:23"},{"$f":"C15","v":"2024-03-14T09:42:24"}]
[null,null,"2024-01-17T08:24:37",null,null,null,"2024-01-09T13:54:04",null,"2024-03-14T09:42:23","2024-03-14T09:42:24"]
[null,null,null,null,null,null,null,null,"2024-03-14T09:42:23","2023-12-14T14:27:55",{"$f":"D31","v":"2023-12-14T14:28:41"}]
[null,null,"2024-01-09T13:54:14",null,null,null,"2024-01-09T13:54:16",null,"2023-12-14T14:27:50"]
[null,null,"2024-03-14T09:42:50",null,null,null,"2024-03-14T09:42:51"]
[]
[null,null,"2024-03-14T09:42:51",null,null,null,"2024-03-14T09:42:52",null,{"$f":"B22","v":"2023-12-14T14:28:10"},{"$f":"C23","v":"2023-12-14T14:28:14"}]
[]
[null,null,null,null,null,null,null,null,{"$f":"B24","v":"2024-03-14T09:42:25"}]
[null,null,null,null,null,null,null,null,"2024-03-14T09:42:26"]
[null,null,null,null,null,null,null,null,"2023-12-14T14:28:23"]
[]
[null,null,null,null,null,null,null,null,null,{"$f":"C29","v":"2024-03-14T09:42:26"}]
[null,null,null,null,null,null,null,null,null,"2023-12-22T09:43:34"]
[]
[]
["Lease"]
[null,null,null,"2024-01-09T13:54:33",null,null,null,{"$f":"B22","v":"2023-12-14T14:28:10"}]
[null,null,null,null,null,null,null,{"$f":"B9","v":"2024-01-03T11:29:47"}]
[null,null,null,null,null,null,null,{"$f":"C10","v":"2023-12-14T14:27:36"}]
[null,null,null,"2024-03-13T14:36:21",null,null,null,{"$f":"B11","v":"2024-03-14T09:42:23"}]
[null,null,null,null,null,null,null,{"$f":"B12","v":"2024-03-14T09:42:23"}]
[null,null,null,null,null,null,null,"2024-03-14T09:42:23"]
[null,null,null,null,null,"2024-01-09T13:54:53",null,"2023-12-14T14:27:50"]
[null,null,null,"2024-01-09T13:54:40",null,null,null,{"$f":"F151","v":"2024-01-09T13:53:43"}]
[null,null,null,null,null,null,null,{"$f":"H151","v":"2024-01-09T13:53:45"}]
[null,null,null,"2024-01-09T13:55:00",null,"2024-03-13T14:36:31",null,{"$f":"K150","v":"2024-01-09T13:53:49"}]
[null,null,null,"2024-03-07T10:45:22"]
[]
[null,null,null,"2024-03-13T14:36:56"]
[]
[]
[]
[]
[null,null,"2024-01-09T13:55:06"]
[null,null,"2024-01-09T13:55:09"]
[null,null,"2024-01-09T13:55:09"]
[null,null,"2024-03-13T14:37:16"]
[null,null,"2024-03-13T14:37:19"]
[null,null,"2024-03-13T14:37:19"]
[null,null,"2024-03-13T14:37:19"]
[null,null,"2024-03-13T14:37:19"]
[null,null,"2024-03-13T14:37:19"]
[null,null,"2024-03-13T14:37:19"]
[]
[]
[]
["2023-11-06T13:54:00",null,null,null,"2023-11-06T13:54:03",null,null,null,null,null,"2023-11-06T13:54:07"]
[]
["2024-01-09T13:55:18",null,null,null,"2024-01-09T13:55:30",null,null,null,null,null,"2024-01-09T13:55:33"]
[]
[]
["2024-03-13T14:37:25",null,null,null,"2024-03-13T14:37:31",null,null,null,null,null,"2024-03-13T14:37:34"]
[]
[]
[]
[]
[]
[]
[]
["2023-11-06T13:54:14"]
[]
["2024-01-09T13:55:40"]
[]
[]
["2024-03-13T14:37:37"]
["2023-11-06T13:54:17"]
[]
["2024-01-09T13:55:42"]
[]
["2023-10-25T14:55:09","2023-11-21T12:29:03",null,null,null,null,null,null,null,null,"2023-11-21T12:29:02"]
["2024-03-13T14:37:40","2023-11-06T13:54:24",null,null,null,null,null,null,null,null,"2023-11-06T13:54:32"]
[null,"2024-01-09T13:55:48",null,null,null,null,null,null,null,null,"2024-01-09T13:55:50"]
[null,"2024-01-09T13:55:53",null,null,null,null,null,null,null,null,"2024-01-09T13:55:55"]
[null,"2024-01-09T13:55:58",null,null,null,null,null,null,null,null,"2024-01-11T12:49:20"]
[null,"2024-03-13T14:38:00",null,null,null,null,null,null,null,null,"2024-03-13T14:38:04"]
[null,"2024-03-13T14:38:00",null,null,null,null,null,null,null,null,"2024-03-13T14:38:09"]
[null,"2024-03-13T14:38:00",null,null,null,null,null,null,"2023-11-06T13:55:24",null,"2024-03-13T14:38:09"]
[null,"2024-03-13T14:38:00",null,null,null,null,null,null,null,null,"2024-03-13T14:38:09"]
[null,"2024-03-13T14:38:00",null,null,null,"2024-01-11T12:49:50",null,null,"2024-01-09T13:56:03",null,"2024-03-13T14:38:09"]
[]
[]
["2023-11-06T13:55:28",null,null,null,null,"2024-03-13T14:38:15"]
[]
["2024-01-09T13:56:10"]
[]
[]
["2024-03-13T14:38:18"]
[]
["Occupancy form 1"]
[{"$f":"B9","v":"2024-01-03T11:29:47"},null,null,null,null,null,null,null,null,null,null,"2023-11-06T14:57:52"]
[{"$f":"C17","v":"2023-12-14T14:27:55"},null,null,null,null,null,null,null,null,null,null,"2024-01-09T13:56:26"]
[{"$f":"D18","v":"2024-03-14T09:42:24"},null,null,null,null,null,null,null,null,null,null,"2023-12-14T14:32:51"]
[{"$f":"C15","v":"2024-03-14T09:42:24"}]
[{"$f":"C16","v":"2024-03-14T09:42:24"},null,null,null,null,null,null,null,null,null,null,"2024-03-13T14:38:30"]
[]
[]
[null,null,null,null,null,null,"2024-01-09T13:56:39",null,"2024-01-09T13:56:40"]
[null,"2024-01-09T13:56:42",null,null,null,"2024-01-09T13:56:46","2024-01-09T13:56:47","2024-01-09T13:56:51","2024-01-09T13:57:17",null,"2024-01-09T13:56:57"]
[null,"2024-01-09T13:57:01",null,null,null,"2024-01-09T13:57:04","2024-01-09T13:57:07","2024-01-09T13:57:09","2024-01-09T13:57:20",null,"2024-01-09T13:57:14"]
[null,"2024-01-09T13:57:01",null,null,null,"2024-01-09T13:57:04","2024-03-13T14:38:32","2024-01-09T13:57:09","2024-03-13T14:38:33",null,"2024-01-09T13:57:14"]
[null,"2024-03-13T14:38:45",null,null,null,"2024-03-13T14:38:49","2024-03-13T14:38:49","2024-03-13T14:39:15","2024-03-13T14:39:18",null,"2024-03-13T14:39:39"]
[null,"2024-03-13T14:39:23",null,null,null,"2024-03-13T14:39:26","2024-03-13T14:39:28","2024-03-13T14:39:30","2024-03-13T14:39:33",null,"2024-03-13T14:39:42"]
[null,"2024-03-13T14:39:23",null,null,null,"2024-03-13T14:39:26","2024-03-13T14:39:28","2024-03-13T14:39:30","2024-03-13T14:39:33",null,"2024-03-13T14:39:42"]
[null,"2024-03-13T14:39:23",null,null,null,"2024-03-13T14:39:26","2024-03-13T14:39:28","2024-03-13T14:39:30","2024-03-13T14:39:33",null,"2024-03-13T14:39:42"]
[null,"2024-03-13T14:39:23",null,null,"2024-01-09T13:57:32","2024-03-13T14:39:26","2024-03-13T14:39:28","2024-03-13T14:39:30","2024-03-13T14:39:33",null,"2024-03-13T14:39:42"]
[null,"2024-03-13T14:39:23",null,null,"2024-01-09T13:57:40","2024-03-13T14:39:26","2024-03-13T14:39:28","2024-03-13T14:39:30","2024-03-13T14:39:33",null,"2024-03-13T14:39:42"]
[null,"2024-01-05T12:08:34",null,null,null,"2024-01-05T12:08:36","2024-01-05T12:08:39","2024-01-05T12:08:45","2024-01-05T12:08:48",null,"2024-01-05T12:08:50"]
[null,"2024-01-05T12:08:34",null,null,"2024-03-13T14:39:45","2024-01-05T12:08:36","2024-01-05T12:08:39","2024-01-05T12:08:45","2024-01-05T12:08:48",null,"2024-01-05T12:08:50"]
[null,"2024-01-05T12:08:34",null,null,"2024-03-13T14:39:46","2024-01-05T12:08:36","2024-01-05T12:08:39","2024-01-05T12:08:45","2024-01-05T12:08:48",null,"2024-01-05T12:08:50"]
["2024-03-07T10:50:50","2024-01-05T12:08:34",null,null,"2023-12-14T14:33:11","2024-01-05T12:08:36","2024-01-05T12:08:39","2024-01-05T12:08:45","2024-01-05T12:08:48",null,"2024-01-05T12:08:50"]
["2024-01-05T11:29:21","2024-01-05T12:08:34",null,null,"2023-12-14T14:33:11","2024-01-05T12:08:36","2024-01-05T12:08:39","2024-01-05T12:08:45","2024-01-05T12:08:48",null,"2024-01-05T12:08:50"]
[]
[]
[]
[]
[]
[null,null,"2024-01-17T08:24:37",null,null,null,null,null,"2024-01-09T13:57:48"]
["2024-01-09T13:57:50",null,"2024-01-09T13:57:55",null,null,"2024-01-09T13:57:56",null,null,"2024-01-09T13:57:58"]
["2024-01-09T13:58:02",null,"2024-01-09T13:58:21",null,null,"2024-01-09T13:58:24",null,null,"2024-01-09T13:58:26"]
["2024-01-09T13:58:02",null,"2024-03-13T14:40:12",null,null,"2024-03-13T14:40:12",null,null,"2024-03-13T14:40:12"]
["2024-03-13T14:40:17",null,"2024-03-13T14:40:17",null,null,"2024-03-13T14:40:17",null,null,"2024-03-13T14:40:17"]
["2024-03-13T14:40:17",null,"2024-03-13T14:40:17",null,null,"2024-03-13T14:40:17",null,null,"2024-03-13T14:40:17"]
["2024-03-13T14:40:17",null,"2024-03-13T14:40:17",null,null,"2024-03-13T14:40:17",null,null,"2024-03-13T14:40:17"]
["2024-03-13T14:40:17",null,"2024-03-13T14:40:17",null,null,"2024-03-13T14:40:17",null,null,"2024-03-13T14:40:17"]
["2024-03-13T14:40:17",null,"2024-03-13T14:40:17",null,null,"2024-03-13T14:40:17",null,null,"2024-03-13T14:40:17"]
["2024-03-13T14:40:17",null,"2024-03-13T14:40:17",null,null,"2024-03-13T14:40:17",null,null,"2024-03-13T14:40:17"]
["2024-01-05T12:08:57",null,"2024-01-09T13:58:37",null,null,"2024-01-05T12:09:03",null,null,"2024-01-05T12:09:05",null,null,"2024-01-09T13:58:43"]
["2024-01-05T12:08:57",null,"2024-01-05T12:09:01",null,null,"2024-01-05T12:09:03",null,null,"2024-01-05T12:09:05",null,null,"2023-11-06T13:57:15"]
["2024-01-05T12:08:57","2024-01-09T13:58:50","2024-01-05T12:09:01",null,null,"2024-01-05T12:09:03",null,null,"2024-01-05T12:09:05"]
["2024-01-05T12:08:57","2023-11-06T13:57:20","2024-03-13T14:40:25",null,null,"2024-01-05T12:09:03",null,null,"2024-01-05T12:09:05",null,null,"2024-03-13T14:40:31"]
["2024-01-05T12:08:57",null,"2024-01-05T12:09:01",null,null,"2024-01-05T12:09:03",null,null,"2024-01-05T12:09:05"]
[null,"2024-03-13T14:40:36"]
[]
[]
[]
[]
[]
[null,null,null,null,null,null,null,"2024-01-09T10:46:52"]
["Occupancy form 2",null,"2024-01-09T14:10:28",null,null,"2024-01-09T13:58:59",null,"2024-01-09T13:59:01"]
[null,null,"2024-01-09T14:10:32",null,null,"2024-01-09T13:59:06",null,"2024-01-09T13:59:08",null,null,"2023-11-06T13:57:27"]
[null,null,"2024-01-09T14:10:32",null,null,"2024-01-09T13:59:06",null,"2024-01-09T13:59:08",null,null,"2023-11-06T13:57:27"]
[null,null,"2024-03-13T14:40:42",null,null,"2024-03-13T14:40:42",null,"2024-03-13T14:40:42",null,null,"2023-12-14T14:33:57"]
[null,null,"2024-03-13T14:40:42",null,null,"2024-03-13T14:40:42",null,"2024-03-13T14:40:42"]
[null,null,"2024-03-13T14:40:42","2023-11-03T11:06:36","2023-11-03T11:06:36","2024-03-13T14:40:42","2023-11-03T11:06:36","2024-03-13T14:40:42","2023-11-03T11:06:36","2023-11-03T11:06:36"]
[null,null,"2024-01-09T13:59:13","2023-11-03T11:06:36","2023-11-03T11:06:37","2023-11-03T11:06:37","2023-11-03T11:06:37","2023-11-03T11:06:37","2023-11-03T11:06:37","2023-11-03T11:06:37"]
[null,null,"2024-01-09T13:59:15"]
[null,null,"2023-11-06T13:57:39"]
[null,null,"2024-03-13T14:40:45",null,null,null,"2024-01-09T13:59:16"]
[null,null,"2024-03-13T14:40:46",null,null,null,"2023-11-06T13:57:43"]
[null,null,"2023-11-03T11:08:04"]
[null,null,"2023-11-03T11:08:44",null,null,null,"2024-03-13T14:40:47"]
[]
[null,null,"2023-11-03T11:09:01",null,"2024-01-09T13:59:17"]
[null,null,null,null,"2023-11-06T13:57:46"]
[]
[null,null,null,null,"2024-03-13T14:40:49"]
[null,null,"2024-01-09T13:59:20"]
[null,null,"2024-01-09T13:59:21"]
[null,null,"2023-11-06T13:57:51"]
[null,null,"2024-03-13T14:40:51"]
[null,null,"2024-03-13T14:40:52"]
[null,null,"2023-11-06T13:57:54"]
[]
[null,null,"2024-03-13T14:40:53"]
[null,null,"2023-11-03T11:10:41"]
[null,null,"2024-01-09T13:59:24"]
[null,null,"2024-01-09T13:59:26"]
[null,null,"2023-11-06T13:57:58"]
[null,null,"2024-03-13T14:40:54"]
[null,null,"2024-03-13T14:40:59"]
[]
[null,null,"2024-01-09T13:59:33"]
[null,null,"2024-03-13T14:40:56"]
[null,null,"2023-11-06T13:58:03"]
[null,null,"2024-03-13T14:41:01"]
[null,"2024-03-05T09:10:27","2023-12-14T14:34:31"]
[]
[null,null,"2023-12-14T14:34:38",null,null,"2023-12-14T14:34:41"]
[null,"2024-01-09T13:59:40"]
[null,null,"2023-12-14T14:34:47"]
[]
["2023-11-02T13:48:11","2024-03-13T14:41:07"]
[]
["Payment notification approval"]
[null,"2023-11-13T09:28:05",null,null,null,null,null,{"$f":"B9","v":"2024-01-03T11:29:47"}]
[null,null,null,null,null,null,null,{"$f":"C10","v":"2023-12-14T14:27:36"}]
[null,"2023-12-14T14:34:58",null,null,null,null,null,{"$f":"B11","v":"2024-03-14T09:42:23"}]
[null,null,null,null,null,null,null,{"$f":"B13","v":"2024-03-14T09:42:23"}]
[null,null,null,null,null,null,null,{"$f":"B14","v":"2023-12-14T14:27:50"}]
[]
["2023-11-14T11:50:08"]
[]
[]
[null,null,null,null,"2024-01-17T08:24:37"]
[null,null,null,null,"2024-01-09T14:00:01"]
[null,null,null,null,"2024-01-09T14:00:05"]
[null,null,null,null,"2024-03-13T14:41:19"]
[null,"2024-01-09T14:00:10",null,null,"2024-03-13T14:41:27"]
[null,"2024-01-09T14:00:15",null,null,"2024-03-13T14:41:35"]
[null,null,null,null,"2023-11-13T09:28:11"]
[null,"2024-03-13T14:41:38",null,null,"2023-11-13T09:28:13"]
[null,"2024-03-13T14:41:42",null,null,"2023-12-14T14:35:07"]
[null,"2023-11-13T09:28:16",null,null,"2023-12-14T14:35:11"]
[null,"2023-11-13T09:28:18",null,null,"2023-12-14T14:35:15"]
[null,null,null,null,null,"2024-01-09T14:00:22",null,"2024-01-09T14:00:22",null,"2024-01-09T14:00:22"]
[null,"2023-12-14T14:35:19"]
[null,"2023-12-14T14:35:19"]
["Rent R",null,null,null,null,"2024-03-13T14:41:47",null,"2024-03-13T14:41:47",null,"2024-03-13T14:41:47"]
[{"$f":"C109","v":"2023-12-14T14:29:46"},null,null,"2024-01-09T14:00:29",null,"2024-01-09T14:00:29",null,"2024-01-09T14:00:29",null,"2024-01-09T14:00:29"]
[{"$f":"B9","v":"2024-01-03T11:29:47"},null,null,"2024-01-09T14:00:29",null,"2024-01-09T14:00:29",null,"2024-01-09T14:00:29",null,"2024-01-09T14:00:30"]
[{"$f":"C10","v":"2023-12-14T14:27:36"},null,null,"2024-01-09T14:00:30",null,"2024-01-09T14:00:30",null,"2024-01-09T14:00:30",null,"2024-01-09T14:00:30"]
[{"$f":"B11","v":"2024-03-14T09:42:23"},null,null,"2024-03-13T14:41:54",null,"2024-03-13T14:41:54",null,"2024-03-13T14:41:54",null,"2024-03-13T14:41:54"]
[{"$f":"B12","v":"2024-03-14T09:42:23"},null,null,"2024-03-13T14:41:54",null,"2024-03-13T14:41:54",null,"2024-03-13T14:41:54",null,"2024-03-13T14:41:54"]
["2024-03-14T09:42:23",null,null,"2024-03-13T14:41:54",null,"2024-03-13T14:41:54",null,"2024-03-13T14:41:54",null,"2024-03-13T14:41:54"]
["2023-12-14T14:27:50",null,null,"2023-11-06T13:58:46",null,"2023-11-06T13:58:46",null,"2023-11-06T13:58:46",null,"2023-11-06T13:58:46"]
[{"$f":"C108","v":"2024-03-13T14:35:31"},null,null,"2024-03-13T14:41:54",null,"2024-03-13T14:41:54",null,"2024-03-13T14:41:54",null,"2024-03-13T14:41:54"]
[null,null,null,"2024-03-13T14:41:54",null,"2024-03-13T14:41:54",null,"2024-03-13T14:41:54",null,"2024-03-13T14:41:54"]
[null,null,null,"2023-12-14T14:25:24",null,"2023-12-14T14:25:24",null,"2023-12-14T14:25:24",null,"2023-12-14T14:25:24"]
[null,null,null,"2023-12-14T14:25:24",null,"2023-12-14T14:25:24",null,"2023-12-14T14:25:24",null,"2023-12-14T14:25:24"]
[null,null,null,"2024-01-09T14:00:30",null,"2024-01-09T14:00:30",null,"2024-01-09T14:00:30",null,"2024-01-09T14:00:30"]
[null,null,null,"2023-12-14T14:25:24",null,"2023-12-14T14:25:24",null,"2023-12-14T14:25:24",null,"2023-12-14T14:25:24"]
[null,null,null,"2023-12-14T14:25:24",null,"2023-12-14T14:25:24",null,"2023-12-14T14:25:24",null,"2023-12-14T14:25:24"]
[null,null,null,"2024-03-13T14:41:54",null,"2024-03-13T14:41:54",null,"2024-03-13T14:41:54",null,"2024-03-13T14:41:54"]
[]
[null,null,null,"2023-11-06T13:58:46",null,"2023-11-06T13:58:46",null,"2023-11-06T13:58:46",null,"2023-11-06T13:58:46"]
[]
[]
[null,null,null,"2024-01-09T14:00:30",null,"2024-01-09T14:00:30",null,"2024-01-09T14:00:30",null,"2024-01-09T14:00:30"]
[null,null,null,"2024-01-09T14:00:30",null,"2024-01-09T14:00:30",null,"2024-01-09T14:00:30",null,"2024-01-09T14:00:30"]
[null,null,null,"2024-01-09T14:00:30",null,"2024-01-09T14:00:30",null,"2024-01-09T14:00:30",null,"2024-01-09T14:00:30"]
[null,null,null,"2024-03-13T14:41:54",null,"2024-03-13T14:41:54",null,"2024-03-13T14:41:54",null,"2024-03-13T14:41:54"]
[null,null,null,"2024-03-13T14:41:54",null,"2024-03-13T14:41:54",null,"2024-03-13T14:41:54",null,"2024-03-13T14:41:54"]
[null,null,null,"2024-03-13T14:41:54",null,"2024-03-13T14:41:54",null,"2024-03-13T14:41:54",null,"2024-03-13T14:41:54"]
[null,null,null,"2024-03-13T14:41:54",null,"2024-03-13T14:41:54",null,"2024-03-13T14:41:54",null,"2024-03-13T14:41:54"]
[null,null,null,"2024-03-13T14:41:54",null,"2024-03-13T14:41:54",null,"2024-03-13T14:41:54",null,"2024-03-13T14:41:54"]
[null,null,null,"2024-03-06T14:24:16",null,"2024-03-06T14:24:16",null,"2024-03-06T14:24:16",null,"2024-03-06T14:24:17"]
[null,null,null,"2024-03-06T14:24:17",null,"2024-03-06T14:24:17",null,"2024-03-06T14:24:18",null,"2024-03-06T14:24:18"]
[null,null,null,"2024-01-09T14:00:42",null,"2024-03-13T14:42:00",null,"2024-03-13T14:42:00",null,"2024-03-13T14:42:00"]
[null,null,null,"2023-12-14T14:25:24",null,"2024-03-13T14:42:00",null,"2024-03-13T14:42:00",null,"2024-03-13T14:42:00"]
[null,null,null,"2023-12-14T14:25:24",null,"2023-11-06T13:58:52",null,"2023-11-06T13:58:52",null,"2023-11-06T13:58:52"]
[null,null,null,"2024-03-13T14:42:04",null,"2024-03-13T14:42:04",null,"2024-03-13T14:42:04",null,"2024-03-13T14:42:04"]
[]
[null,null,null,"2023-11-06T13:58:55",null,"2023-12-14T14:25:32",null,"2023-12-14T14:25:32",null,"2023-12-14T14:25:32"]
[null,null,null,null,null,"2023-12-14T14:25:32",null,"2023-12-14T14:25:32",null,"2023-12-14T14:25:32"]
[null,null,null,null,"2024-01-11T14:38:28",null,"2024-01-11T14:38:39"]
[null,null,null,"2023-12-14T14:25:41",null,"2023-12-14T14:25:41",null,"2023-12-14T14:25:41",null,"2023-12-14T14:25:41"]
[]
[]
[]
[]
[]
[null,null,null,null,null,null,null,"2024-01-09T14:00:49"]
[]
[]
[null,null,null,null,"2024-03-07T10:26:15","2024-03-13T14:42:07",null,"2024-03-06T14:24:22"]
[]
[null,null,null,null,null,null,null,"2023-11-06T13:59:04"]
[]
[]
[null,null,"2024-01-09T14:00:51","2024-03-07T10:29:05","2024-03-07T10:30:18",null,null,"2023-12-14T14:35:32","2024-01-09T14:00:54"]
[null,null,null,"2024-03-04T09:13:23"]
[]
[null,"2024-03-05T09:10:52","2024-03-13T14:42:12",null,null,null,null,null,"2024-03-13T14:42:14"]
[]
[null,null,"2023-11-06T14:44:01","2024-03-05T09:10:59",null,null,null,null,"2023-11-06T14:44:07"]
[null,"2024-01-09T14:00:59"]
[]
[null,null,"2023-12-14T14:35:38","2024-01-09T14:01:02",null,null,null,null,"2023-12-14T14:35:41"]
[null,"2024-03-13T14:42:19","2024-03-05T09:11:05"]
["Notification of annual review",null,"2024-03-05T09:11:10",null,"2024-03-04T09:09:59"]
["2023-10-16T13:56:14","2023-11-06T14:59:36",null,"2024-03-13T14:42:22","2024-03-05T09:11:16"]
[null,null,"2024-01-09T14:01:06",null,"2024-03-04T09:10:05"]
["2023-10-16T13:56:14",null,"2024-01-09T14:01:11","2023-11-06T14:59:45"]
[null,"2023-12-14T14:40:02",null,null,"2024-03-05T09:11:22"]
["2023-10-16T13:56:14",null,"2024-03-13T14:42:25",null,"2024-03-05T09:11:26"]
["2024-01-16T13:14:25",null,"2024-03-13T14:42:29","2023-12-14T14:40:07","2024-03-05T09:11:30","2024-01-16T09:32:09","2024-01-16T13:18:00"]
["2024-01-16T13:17:26","2024-01-16T09:33:04","2024-01-18T10:53:56","2023-10-11T09:35:13","2024-03-13T14:42:32"]
["2024-01-18T10:55:44",null,"2023-11-06T14:44:38",null,"2024-01-18T11:03:57"]
["2024-01-18T10:56:01",null,null,null,"2024-01-18T11:03:59"]
[null,null,"2023-12-14T14:40:12",null,"2024-03-13T14:42:38"]
["2023-11-06T14:45:13",null,"2023-12-14T14:40:15",null,"2024-03-13T14:42:40"]
[null,null,null,null,"2024-03-13T14:42:43"]
[null,null,null,null,"2024-01-09T14:01:31"]
["2023-12-12T11:42:37"]
[]
["2024-04-01T12:36:59",null,"2023-12-12T11:42:52"]
["Change tenant payment"]
["2023-12-12T11:42:37","2023-10-26T14:20:36","2023-12-12T11:43:07",null,null,null,{"$f":"B9","v":"2024-01-03T11:29:47"}]
[null,null,null,null,null,null,{"$f":"C10","v":"2023-12-14T14:27:36"},null,"2023-12-22T10:16:44"]
["2024-01-04T09:50:05",null,"2024-01-04T09:50:17",null,"2024-03-06T14:20:15",null,{"$f":"B11","v":"2024-03-14T09:42:23"}]
[null,null,null,null,null,null,{"$f":"B12","v":"2024-03-14T09:42:23"},null,"2023-12-22T10:16:48"]
["2024-01-04T09:50:34",null,null,"2023-10-26T14:20:39","2024-01-04T09:50:59",null,"2024-03-14T09:42:23",null,{"$f":"E459","v":"2023-12-22T10:16:40"}]
[null,null,null,null,null,null,"2023-12-14T14:27:50",null,{"$f":"B9","v":"2024-01-03T11:29:47"}]
[null,null,null,"2023-10-26T14:20:41",null,null,null,null,{"$f":"C10","v":"2023-12-14T14:27:36"}]
["2024-04-01T12:30:49",null,null,null,null,null,null,null,{"$f":"B11","v":"2024-03-14T09:42:23"}]
[null,null,null,null,"2023-12-22T10:16:40",null,null,null,{"$f":"B12","v":"2024-03-14T09:42:23"}]
[null,null,null,null,null,null,null,null,"2024-03-14T09:42:23"]
[null,null,null,null,"2023-10-26T14:20:46",null,null,null,"2023-12-14T14:27:50"]
[null,null,null,null,null,null,null,null,{"$f":"B22","v":"2023-12-14T14:28:10"}]
[null,null,null,"2023-10-26T14:20:48"]
[]
[null,null,null,"2023-10-26T14:20:49"]
[]
[null,null,null,"2023-10-26T14:20:53"]
[]
[null,null,null,"2023-10-26T14:22:29"]
[]
[null,null,null,null,"2023-10-26T14:22:34"]
[]
[null,null,"2023-10-26T14:22:40"]
[]
[]
[null,null,"2023-10-26T14:22:48"]
[null,null,null,"2023-10-26T14:22:51"]

{"sheet":"Calculation Worksheet Page 1","index":3,"n_rows":43,"n_cols":4,"rows_kept":43,"cut":false,"hidden":false,"merged":[[2,2,2,3],[11,2,11,3],[22,2,22,3],[31,2,31,3],[30,2,30,3]]}
[]
["Household Member #1",null,"Household Member #1"]
[null,"Monthly","Weekly Pay"]
["SSDI",{"$f":"Administration!G38","v":0},"Week 1 Pay",{"$f":"Administration!L39","v":0}]
["SSI",{"$f":"Administration!G39","v":0},"Week 2 Pay",{"$f":"Administration!L40","v":0}]
["TANF",{"$f":"Administration!G40","v":0},"Week 3 Pay",{"$f":"Administration!L41","v":0}]
["Earned Income",{"$f":"Administration!G41","v":0},"Week 4 Pay",{"$f":"Administration!L42","v":0}]
["SAGA",{"$f":"Administration!G42","v":0},"Total",{"$f":"SUM(D4:D7)","v":0}]
["Unemployment",{"$f":"Administration!G43","v":0},"Monthly Average",{"$f":"FLOOR(D8/4*52/12,1)","v":0}]
["Child Support",{"$f":"Administration!G44","v":0}]
["Alimony",{"$f":"Administration!G45","v":0},"Household Member #1"]
["VA Service- Connected Disability Compensation Income",{"$f":"Administration!G46","v":0},"Bi-Weekly Pay"]
["VA Non-Service Connected Disability Pension",{"$f":"Administration!G47","v":0},"Bi-Weekly 1st",{"$f":"Administration!L50","v":0}]
["Private Disability Insurance Income",{"$f":"Administration!G48","v":0},"Bi-Weekly 2nd",{"$f":"Administration!L51","v":0}]
["Retirement Income from Social Security Income",{"$f":"Administration!G49","v":0},"Total",{"$f":"SUM(D13,D14)","v":0}]
["Pension/ Retirement Income from a former job",{"$f":"Administration!G50","v":0},"Monthly Average",{"$f":"FLOOR(D15/2*26/12,1)","v":0}]
["Worker's Compensation",{"$f":"Administration!G51","v":0}]
["Other sources of Income",{"$f":"Administration!G52","v":0}]
[null,{"$f":"SUM(B4:B18)","v":0}]
[]
[]
["Household Member #2",null,"Household Member #2"]
[null,"Monthly","Weekly Pay"]
["SSDI",{"$f":"Administration!G59","v":0},"Week 1 Pay",{"$f":"Administration!L60","v":0}]
["SSI",{"$f":"Administration!G60","v":0},"Week 2 Pay",{"$f":"Administration!L61","v":0}]
["TANF",{"$f":"Administration!G61","v":0},"Week 3 Pay",{"$f":"Administration!L62","v":0}]
["Earned Income",{"$f":"Administration!G62","v":0},"Week 4 Pay",{"$f":"Administration!L63","v":0}]
["SAGA",{"$f":"Administration!G63","v":0},"Total",{"$f":"SUM(D24:D27)","v":0}]
["Unemployment",{"$f":"Administration!G64","v":0},"Monthly Average",{"$f":"FLOOR(D28/4*52/12,1)","v":0}]
["Child Support",{"$f":"Administration!G65","v":0}]
["Alimony",{"$f":"Administration!G66","v":0},"Household Member #2"]
["VA Service- Connected Disability Compensation Income",{"$f":"Administration!G67","v":0},"Bi-Weekly Pay"]
["VA Non-Service Connected Disability Pension",{"$f":"Administration!G68","v":0},"Bi-Weekly 1st",{"$f":"Administration!L71","v":0}]
["Private Disability Insurance Income",{"$f":"Administration!G69","v":0},"Bi-Weekly 2nd",{"$f":"Administration!L72","v":0}]
["Retirement Income from Social Security Income",{"$f":"Administration!G70","v":0},"Total",{"$f":"SUM(D33,D34)","v":0}]
["Pension/ Retirement Income from a former job",{"$f":"Administration!G71","v":0},"Monthly Average",{"$f":"FLOOR(D35/2*26/12,1)","v":0}]
["Worker's Compensation",{"$f":"Administration!G72","v":0}]
["Other sources of Income",{"$f":"Administration!G73","v":0}]
[null,{"$f":"SUM(B24:B38)","v":0}]
[]
["Last Edited"]
[{"$f":"LARGE(Sheet2!G39:L76,1)","v":"2024-03-13T14:34:44"}]
[{"$f":"Administration!A2","v":"Version 2.1"}]

{"sheet":"Calculation Worksheet Page 2","index":4,"n_rows":47,"n_cols":8,"rows_kept":47,"cut":false,"hidden":false,"merged":[[33,1,33,4],[45,0,45,1],[45,2,45,4],[34,1,34,4],[35,1,35,4],[0,6,0,7],[10,0,10,1],[19,0,20,4],[32,1,32,4],[3,3,3,5],[4,3,4,5],[0,4,0,5],[1,4,1,5],[1,6,1,7],[6,1,6,4],[7,1,7,4]]}
["Date:",{"$f":"IF(Administration!C80<>\"\", Administration!C80, \"\")","v":""},null,null,"Certificate Number:",null,{"$f":"IF(Administration!C81<>\"\", Administration!C81, \"\")","v":""}]
[null,null,null,null,"Contract Number:",null,{"$f":"IF(Administration!C5<>\"\", Administration!C5, \"\")","v":""}]
[]
[null,null,null,"Rental Assistance Payments"]
[null,null,null,"Calculation Worksheet"]
[]
["Name:  ",{"$f":"Administration!C124","v":0},null,null,null,null,"# of Bedrooms:",{"$f":"Administration!C82","v":0}]
["Address: ",{"$f":"Administration!C9&\" \"&Sheet2!J2&\" \"&Administration!B10&\" \"&Administration!B11&\" \"&Administration!B12&\" \"&Administration!B13","v":"     "},null,null,null,null,"# of Dependents:",{"$f":"Administration!C83","v":0}]
[null,null,null,null,null,null,"# in Household:",{"$f":"Administration!C84","v":0}]
[]
["1. Gross Annual Income: ",null,null,null,null,null,null,{"$f":"+ROUNDDOWN(E12+E13,0)","v":0}]
["  Household Member #1:",null,{"$f":"'Calculation Worksheet Page 1'!B19","v":0},"Monthly",{"$f":"+C12*12","v":0},"Yearly"]
["  Household Member #2:",null,{"$f":"'Calculation Worksheet Page 1'!B39","v":0},"Monthly",{"$f":"+C13*12","v":0},"Yearly"]
[]
["    A. 10% of Gross Annual Income divided by 12 months",null,null,null,null,null,null,{"$f":"+ROUNDDOWN(H11*0.1/12,0)","v":0}]
["    B. Total Utility Allowance from #6",null,null,null,null,null,null,{"$f":"H39","v":0}]
["    C. 10 % of Gross Monthly Income (line 1A) minus Total utility allowance",null,null,null,null,null,null,{"$f":"+H15-H16","v":0}]
["2. Annual Allowances"]
["    A. Each Dependent ",null,480,null,null,null,null,{"$f":"IF(H8=0,0,H8*C19)","v":0}]
["    B. For Child Care: (Costs which enable one or both parents to be gainfully employed)",null,null,null,null,null,null,{"$f":"Administration!E87","v":0}]
[]
["    C. Non-reimbursed Medical Expenses in excess of 3% of Gross Income:"]
[null,"a. Non-reimbursed Medical Expenses",null,null,null,null,null,{"$f":"Administration!E92","v":0}]
[null,"b. Less 3% of Annual Income",null,null,null,null,null,{"$f":"IF(H23>0,+H11*0.03,0)","v":0}]
[null,"c. Deduction (greater than zero) a - b = #2c",null,null,null,null,null,{"$f":"IF(H23-H24>0,(H23-H24),0)","v":0}]
["    D. Allowances for Elderly and Disabled ",null,null,null,400,null,null,{"$f":"+E26","v":400}]
["    E. Total Allowances",null,null,null,null,null,null,{"$f":"ROUNDDOWN(H20+H19+H25+H26,0)","v":400}]
["3. Annual Income After Allowances",null,null,null,null,null,null,{"$f":"+ROUNDDOWN(H11-H27,0)","v":-400}]
["    A. Monthly income after allowances",null,null,null,null,null,null,{"$f":"+ROUNDDOWN(H28/12,0)","v":-33}]
["4. 30% of Monthly Income After Allowances",null,null,null,null,null,null,{"$f":"ROUNDDOWN(H29*0.3,0)","v":-9}]
["5. Contract Rent",null,null,null,null,null,null,{"$f":"Administration!C108","v":0}]
["6. Allowance for Utilities and Other Services"]
[null,"Heating:      Natural Gas/Bottle Gas/Oil/Electric",null,null,null,{"$f":"Administration!E97","v":0},null,{"$f":"Administration!G97","v":0}]
[null,"Water Heat: Natural Gas/Bottle Gas/Oil/Electric",null,null,null,{"$f":"Administration!E98","v":0},null,{"$f":"Administration!G98","v":0}]
[null,"Cooking:      Natural Gas/Bottle Gas/Oil/Electric",null,null,null,{"$f":"Administration!E99","v":0},null,{"$f":"Administration!G99","v":0}]
[null,"Other Electric: Lighting, refrigeration, etc.",null,null,null,{"$f":"Administration!E100","v":0},null,{"$f":"Administration!G100","v":0}]
["Appliances:     ","Range   ",{"$f":"Administration!E101","v":0},"Refrigerator",null,{"$f":"Administration!E102","v":0},null,{"$f":"Administration!G101+Administration!G102","v":0}]
["Misc:  ","Water    ",{"$f":"Administration!E103","v":0},"Trash Collection",null,{"$f":"Administration!E104","v":0},null,{"$f":"Administration!G103+Administration!G104","v":0}]
[null,"Total Utility Allowance",null,null,null,null,null,{"$f":"SUM(H33:H38)","v":0}]
["7. Gross Rent",null,null,null,null,null,null,{"$f":"H31+H39","v":0}]
["8. Fair Market Rent",null,null,null,null,null,null,{"$f":"Administration!C107","v":0}]
["9. Family Contribution",null,"The greater of either #1C",null,{"$f":"H17","v":0},"or #4-#6",{"$f":"H30-H39","v":-9},{"$f":"IF(G42 > H31, H31, MAX(E42, G42, 0))","v":0}]
["10. Subsidy Payment",null,null,null,null,null,null,{"$f":"IF(H42>0,H31-H42,H31)","v":0}]
[]
[]
["Preparer's Typed Name:",null,{"$f":"IF(Administration!C110<>\"\", Administration!C110, \"\")","v":""},null,null,null,"Last edited",{"$f":"LARGE(Sheet2!C81:G111,1)","v":"2024-03-13T14:35:33"}]
["rev.9/25/23",null,null,null,null,null,null,{"$f":"Administration!A2","v":"Version 2.1"}]

{"sheet":"NAF","index":5,"n_rows":49,"n_cols":16,"rows_kept":49,"cut":false,"hidden":false,"merged":[[47,0,47,1],[5,0,5,1],[5,2,5,6],[8,2,8,7],[8,9,8,11],[10,2,10,10],[45,10,45,11],[43,2,43,7],[45,2,45,7],[40,10,40,11],[42,10,42,11],[44,10,44,11],[43,10,43,11],[41,10,41,11],[41,2,41,7],[44,0,44,1],[4,0,4,1],[4,10,4,11],[4,2,4,6],[6,1,6,2],[6,4,6,7],[0,0,0,12],[1,0,1,12],[3,0,3,2],[3,3,3,7],[3,10,3,11],[3,8,3,9],[44,2,44,7],[35,2,36,12],[25,11,26,12],[25,0,25,1],[25,7,25,8],[26,4,26,5],[42,0,42,1],[40,0,40,1],[25,2,25,3],[40,2,40,7],[42,2,42,7],[9,2,9,7],[17,3,17,7],[24,2,24,3],[23,2,23,3],[15,3,15,7],[16,2,16,7],[20,2,20,3],[22,2,22,3],[19,2,19,3],[14,3,14,7],[19,5,19,7],[20,7,20,10],[12,2,12,12],[13,2,13,12]]}
["CoC RENTAL ASSISTANCE PROGRAM"]
["New Admission Form"]
["1. GRANT INFORMATION"]
["   Federal Grant I.D./HUD Award No.: ",null,null,{"$f":"Administration!E117","v":0},null,null,null,null,"SID NO. ",null,{"$f":"Administration!K117","v":22656}]
["   Contract No.:",null,{"$f":"Administration!C118","v":0},null,null,null,null,null,"Project No.     ",null,{"$f":"Administration!K118","v":{"$error":"#VALUE!"}}]
[]
[null,"       New Admission",null,null,"          Re-Certification",null,null,null,"           Current Participant New Address OR Unit"]
["2. TENANT INFORMATION",null,null,null,null,null,null,null,null,null,null,null,null,null,false,6]
["   Tenant's Account No.:",null,{"$f":"Administration!C123","v":0},null,null,null,null,null,null,"No of bedrooms:",null,null,{"$f":"Administration!I123","v":0},null,false,7]
["   Tenant's Name:",null,{"$f":"Administration!C124","v":0},null,null,null,null,null,null,null,null,null,null,null,false,8]
["   Address:",null,{"$f":"Administration!C9&\" \"&Sheet2!J2&\" \"&Administration!B10&\" \"&Administration!B11&\" \"&Administration!B12&\" \"&Administration!B13","v":"     "},null,null,null,null,null,null,null,null,null,null,null,true,9]
["3. OWNER INFORMATION",null,null,null,null,null,null,null,null,null,null,null,null,null,false,13]
["   Owner's Name:",null,{"$f":"Administration!C130","v":0},null,null,null,null,null,null,null,null,null,null,null,false,14]
["   Owner's Address:",null,{"$f":"Administration!D131&\" \"&Administration!D132&\" \"&Administration!H132&\" \"&Administration!J132","v":"0 0 0 0"},null,null,null,null,null,null,null,null,null,null,null,false,15]
["   Owner's Home/Business Phone:",null,null,{"$f":"Administration!D134","v":0},null,null,null,null,null,null,null,null,null,null,false,16]
["   Owner's Business FAX:",null,null,{"$f":"Administration!D135","v":0},null,null,null,null,null,null,null,null,null,null,false,17]
["   Owner's E-Mail:",null,{"$f":"Administration!D136","v":0},null,null,null,null,null,null,null,null,null,null,null,false,18]
["   Owner's State of CT Supplier ID:",null,null,{"$f":"Administration!D137","v":0},null,null,null,null,null,null,null,null,null,null,false,19]
["   Owner's Type of Business (Check Only One):",null,null,null,null,null,null,null,null,null,null,null,null,null,false,20]
[null,"  Corporation","LLC Corporation",null,null,"LLC Partnership",null,null,null,null,"LLC Single Member Entity",null,null,null,false,21]
[null,"Non-Profit","Partnership",null,null,null,null,"        Individual/Sole Proprietor",null,null,null,null,null,null,false,22]
["4. HAP CONTRACT INFORMATION",null,null,null,null,null,null,null,null,null,null,null,null,null,false,23]
["   Tenant's Payment:        ",null,{"$f":"Administration!D147","v":0},null,null,null,null,null,null,null,null,null,null,null,false,24]
["   Housing Assistance:     ",null,{"$f":"Administration!D148","v":0},null,null,null,null,null,null,null,null,null,null,null,false,25]
["   Contract Rent:              ",null,{"$f":"Administration!D149","v":0},null,null,null,null,null,null,null,null,null,null,null,false,25]
["   Security Deposit:         ",null,{"$f":"Administration!D150","v":0},null,null,"New",null,"      Previously Paid",null,null,null,{"$f":"Administration!K152","v":0},null,null,false,26]
["   Effective Dates of HAP Contract:    ",null,null,"From:",{"$f":"Administration!F153","v":"00:00:00"},null,null,"To:",{"$f":"Administration!H153","v":"00:00:00"},null,"No. of Months:  "]
[]
["5. PAYMENT STANDARD COMPLIANCE"]
[" Check Applicable"]
[null,"*a.","     Gross rent does not exceed Grant FMR and meets Rent Reasonableness Standards"]
[null,"*b.","     Gross rent exceeds Grant FMR but meets Rent Reasonableness Standards"]
[]
["(*By checking b, the local CoC Rental Assistance housing provider verifies that sufficient funds will be available to fulfill the original"]
["grant award obligation with grant award funds.)"]
["6. COMMENTS:",null,{"$f":"Administration!C161","v":0}]
[{"$f":"Administration!B165","v":0}]
[]
[]
[]
["Submitted By:",null,{"$f":"Administration!C167","v":0},null,null,null,null,null,null,null,{"$f":"Administration!G167","v":"00:00:00"}]
[null,null,"Name",null,null,null,null,null,null,null,"Date"]
["Reviewed By:",null,{"$f":"Administration!C169","v":0},null,null,null,null,null,null,null,{"$f":"Administration!G169","v":"00:00:00"}]
[null,null,"Name",null,null,null,null,null,null,null,"Date"]
["Approved By:",null," "]
[null,null,"Name",null,null,null,null,null,null,null,"Date"]
["Last edited"]
[{"$f":"LARGE(Sheet2!C149:K176,1)","v":"2024-03-14T09:42:52"}]
[{"$f":"Administration!A2","v":"Version 2.1"}]

{"sheet":"Lease","index":6,"n_rows":343,"n_cols":50,"rows_kept":343,"cut":false,"hidden":false,"merged":[[211,3,211,4],[215,3,215,4],[141,0,141,52],[142,0,142,51],[135,0,135,51],[224,3,224,4],[323,2,323,21],[322,29,322,48],[323,29,323,48],[319,2,319,21],[319,29,319,48],[322,2,322,21],[292,2,292,23],[312,0,312,49],[313,0,313,21],[287,44,287,48],[146,1,146,45],[146,49,146,55],[143,0,143,51],[145,0,145,52],[66,19,66,36],[56,25,56,27],[56,37,56,39],[55,22,55,24],[62,3,65,18],[70,3,70,17],[70,20,70,42],[70,44,70,55],[71,44,71,55],[71,3,71,15],[71,19,71,36],[0,0,0,55],[12,3,12,53],[37,3,37,42],[9,3,9,10],[9,12,9,14],[9,16,9,22],[36,36,36,50],[15,25,15,40],[23,12,23,21],[27,17,27,26],[14,29,14,36],[4,34,4,53],[3,13,3,51],[334,2,334,21],[331,2,331,21],[332,2,332,21],[151,47,151,48],[148,1,148,45],[149,1,149,45],[150,1,150,45],[325,2,325,21],[6,2,6,28],[8,27,8,53],[15,9,15,18],[38,6,38,13],[38,3,38,5],[28,31,28,40],[55,39,55,41],[65,20,65,42],[55,3,55,13],[55,14,55,16],[43,3,44,44],[65,44,65,55],[66,3,66,15],[55,32,55,34],[56,11,56,13],[66,44,66,55],[128,0,128,50],[131,0,131,18],[133,0,133,50],[104,0,104,10],[130,2,130,16],[139,0,139,53],[140,0,140,51],[136,0,136,52],[124,1,124,31],[125,0,125,31],[127,0,127,50],[134,0,134,48],[137,0,137,51],[341,0,341,3],[151,1,151,45],[147,1,147,45],[149,47,149,48],[150,47,150,48],[147,47,147,48],[147,49,147,55],[148,47,148,48],[148,49,148,55],[149,49,149,55],[150,49,150,55],[151,49,151,55],[287,37,287,41],[315,2,318,21],[316,29,318,48],[335,2,335,21],[327,29,327,48],[328,29,328,48],[331,29,331,48],[332,29,332,48],[334,29,334,48],[335,29,335,48],[327,2,327,21],[328,2,328,21]]}
["LEASE"]
[]
["1.",null,"Parties:   The parties to this Lease are:  the Landlord, in this Lease, referred to as "]
[null,null,"“we”, “us”, or “our”, ",null,null,null,null,null,null,null,null,null,null,{"$f":"Administration!C130","v":0}]
[null,null,"and the Tenant, in this Lease, referred to as “you” and “yours”,",null,null,null,null,null,null,null,null,null,null,null,null,null,null,null,null,null,null,null,null,null,null,null,null,null,null,null,null,null,null,null,{"$f":"Administration!C124","v":0}]
[]
["2.",null,"Property: We agree to rent the following to you:"]
[]
[null,null,"a)","an apartment (the \"apartment\") located at:",null,null,null,null,null,null,null,null,null,null,null,null,null,null,null,null,null,null,null,null,null,null,null,{"$f":"Administration!C9&\" \"&Sheet2!J2&\" \"&Administration!B10","v":"  "}]
[null,null,null,{"$f":"Administration!E126","v":0},null,null,null,null,null,null,null,",",{"$f":"Administration!G126","v":0},null,null,",",{"$f":"Administration!I126","v":0},null,null,null,null,null,null," "]
[]
[null,null,"b)","and the following furniture and appliances:"]
[null,null,null,{"$f":"Administration!D183","v":0}]
[]
["3.",null,null,"Terms and Rent:      The term of this lease begins ",null,null,null,null,null,null,null,null,null,null,null,null,null,null,null,null,null,null,null,null,null,null,null,null,null,{"$f":"Administration!F153","v":"00:00:00"}]
[null,null,null,"and ends",null,null,null,null,null,{"$f":"Administration!H153","v":"00:00:00"},null,null,null,null,null,null,null,null,null,"(a total of ",null,null,null,null,null,{"$f":"Administration!K152","v":0},null,null,null,null,null,null,null,null,null,null,null,null,null,null,null,")","Months"]
[]
[null,null,"a)",null,"This Lease has been signed by the parties on the condition that the Connecticut "]
[null,null,null,null,"Department of Mental Health and Addiction Services (DMHAS) will promptly "]
[null,null,null,null,"execute a Housing Assistance Payments Contract (Contract) with us."]
[null,null,null,null,"Accordingly, this Lease shall not become effective unless the DMHAS has "]
[null,null,null,null,"executed such a contract by the first day of occupancy specified in the Lease."]
[]
[null,null,"b)","The total rent is ",null,null,null,null,null,null,null,null,{"$f":"Administration!D149","v":0},null,null,null,null,null,null,null,null,null,"per month, payable to us in advance on the first"]
[null,null,null,"day of each month of the term of the Lease.  Payment shall be made to our address "]
[null,null,null,"set forth in paragraph 5."]
[]
[null,null,"c)","Of the total monthly rent, ",null,null,null,null,null,null,null,null,null,null,null,null,null,{"$f":"Administration!D148","v":0},null,null,null,null,null,null,null,null,null,"shall be payable by DMHAS "]
[null,null,null,"as housing assistance payments on your behalf and ",null,null,null,null,null,null,null,null,null,null,null,null,null,null,null,null,null,null,null,null,null,null,null,null,null,null,null,{"$f":"Administration!D147","v":0},null,null,null,null,null,null,null,null,null,"shall be"]
[null,null,null,"payable by you.  The amounts shall be subject to change by reason of changes "]
[null,null,null,"in your family’s income, family composition, or extent of exceptional medical"]
[null,null,null,"or other unusual expenses, in accordance with HUD established schedules and "]
[null,null,null,"criteria; or by reason of adjustment by the DMHAS of any applicable "]
[null,null,null,"allowance for utilities and other services.  Any such change shall be effective "]
[null,null,null,"as of the date stated in a notification to you."]
[]
[null,null,"d)","Security Deposit:   The amount of security deposit paid by "]
[null,null,null,{"$f":"Administration!F189","v":0}]
[null,null,null,"is",null,null,{"$f":"Administration!D190","v":0},null,null,null,null,null,null,null,"(insert amount or state \"None:)"]
[]
[null,null,"e)","Use of Apartment:  You will use the apartment strictly for residential "]
[null,null,null,"purposes for yourself and your family.  You will not sublease the  "]
[null,null,null,"apartment or let anyone other than those listed below live in the apartment:"]
[null,null,null,{"$f":"Administration!D192","v":0}]
[]
[]
[]
[]
[]
[]
["4.",null,null,"Utilities:"]
[]
[null,null,null,"We will pay the utilities checked with “we” and you will pay the utilities checked "]
[null,null,null,"with “you”."]
[]
[null,null,null,"General Electricity",null,null,null,null,null,null,null,null,null,null,{"$f":"Administration!C200","v":0},null,null,null,"Range",null,null,null,{"$f":"Administration!C201","v":0},null,null,null,"Hot Water",null,null,null,null,null,{"$f":"Administration!C202","v":0},null,null,null,"Heat",null,null,{"$f":"Administration!C203","v":0}]
[null,null,null,"Cooking Fuel ",null,null,null,null,null,null,null,{"$f":"Administration!C204","v":0},null,null,null,"Refuse Removal",null,null,null,null,null,null,null,null,null,{"$f":"Administration!C205","v":0},null,null,null,"Refrigerator",null,null,null,null,null,null,null,{"$f":"Administration!C206","v":0}]
[]
["5.",null,null,"Notices:  Our notices will be in writing and will be given/sent to you at the "]
[null,null,null,"apartment; your rents and your notices, which shall be in writing, will be "]
[null,null,null,"given/sent to us at:"]
[]
[null,null,null,{"$f":"Administration!C130","v":0}]
[]
[]
[null,null,null,null,null,null,null,null,null,null,null,null,null,null,null,null,null,null,null,null,{"$f":"Administration!D131&\" \"&Administration!D132&\" \"&Administration!H132&\" \"&Administration!J132","v":"0 0 0 0"},null,null,null,null,null,null,null,null,null,null,null,null,null,null,null,null,null,null,null,null,null,null,null,{"$f":"Administration!D134","v":0}]
[null,null,null,"Our Name",null,null,null,null,null,null,null,null,null,null,null,null,null,null,null,"   Address",null,null,null,null,null,null,null,null,null,null,null,null,null,null,null,null,null,null,null,null,"       ",null,null,null,"Phone"]
[]
[null,null,null,"In case of emergency, you will contact the following person:"]
[]
[null,null,null,{"$f":"Administration!A215","v":0},null,null,null,null,null,null,null,null,null,null,null,null,null,null,null,null,{"$f":"Administration!E215","v":0},null,null,null,null,null,null,null,null,null,null,null,null,null,null,null,null,null,null,null,null,null,null,null,{"$f":"Administration!K215","v":0}]
[null,null,null,"Name",null,null,null,null,null,null,null,null,null,null,null,null,null,null,null,"   Address",null,null,null,null,null,null,null,null,null,null,null,null,null,null,null,null,null,null,null,null,"                 Phone    ",null,null,null,"Phone"]
[]
["6.",null,null,"Your Duty to Maintain the Apartment:  You will maintain the apartment in a "]
[null,null,null,"clean and neat condition and at all times comply with the provisions of the "]
[null,null,null,"Housing Quality Standards of HUD, State and Local Health and Housing Code "]
[null,null,null,"Requirements."]
[]
["7.",null,null,"Alterations:  No substantial alteration, addition, or improvements will be made by "]
[null,null,null,"you in or to the apartment without prior written consent.  Such consent will not be "]
[null,null,null,"unreasonably withheld, but may be conditioned upon your agreeing to restore the "]
[null,null,null,"apartment to its prior condition before moving out.  If you receive our permission"]
[null,null,null,"to make any changes, every item you install in the apartment will immediately be "]
[null,null,null,"our property unless otherwise agreed to in writing, but you may use them until the "]
[null,null,null,"Lease expires."]
[]
["8.",null,null,"Noises; Peace and Quiet:  You agree not to allow in your apartment any excessive "]
[null,null,null,"noise or other activity which disturbs the peace and quiet of other tenants in the "]
[null,null,null,"building.  We agree to prevent other tenants and other persons in the building or "]
[null,null,null,"common areas from similarly disturbing your peace and quiet.  We agree that we, "]
[null,null,null,"and that no one acting by or through us, will disturb your peace and quiet."]
[]
["9.",null,null,"Subleasing:  You will not assign this Lease or sublet the apartment without our "]
[null,null,null,"written consent and the written consent of the Department of Mental Health and "]
[null,null,null,"Addiction Services, or its agent.  Such consent shall not be withheld without good "]
[null,null,null,"reason.  This paragraph shall not prevent you from accommodating guests for "]
[null,null,null,"reasonable, short periods of time."]
[]
["10.",null,null,"Termination:",null,null,null,null,null,null,null,null,"Upon termination of this Lease, you will leave the apartment, "]
[null,null,null,"remove all personal property belonging to you, and leave the apartment as clean "]
[null,null,null,"as you found it (normal wear and tear excepted)."]
[]
[]
[]
["            WE AGREE TO:"]
[]
["11.",null,null,"Maintenance: We will maintain the apartment in a fit, habitable, and structurally "]
[null,null,null,"sound condition and we will otherwise comply with the provisions of Chapter "]
[null,null,null,"830 of the Connecticut General Statutes, as amended, and the Housing Quality "]
[null,null,null,"Standards which state the minimum Housing Quality Standards for participation "]
[null,null,null,"of existing apartments in the Continuum of Care Rental Assistance Program."]
[null,null,null,"A copy of the Housing Quality Standards may be found at "]
[null,null,null,"http://portal.hud.gov/hudportal/documents/huddoc?id=52580.pdf"]
[]
[null,null,null,"We will maintain the apartment and all equipment provided with it, as well as "]
[null,null,null,"common areas, facilities and equipment provided for your use and benefit, in "]
[null,null,null,"compliance with Housing Quality Standards on the basis of which this Lease was "]
[null,null,null,"approved by the DMHAS, and respond in a reasonable time to your calls for "]
[null,null,null,"services consistent with said obligation.  Where applicable (as in case of multi-"]
[null,null,null,"unit buildings), such maintenance with respect to common areas, facilities and "]
[null,null,null,"equipment shall include cleaning, maintenance of lighting and equipment, "]
[null,null,null,"maintenance of grounds, lawns and shrubs; and removal of snow and ice.  Where "]
[null,null,null,"security equipment and services are to be provided by us, they are as follows:"]
[]
[null,{"$f":"Administration!A228","v":0}]
["               (Specify, or state “No schedule”)."]
[]
["               Extermination services will be provided by us as conditions may require.  If such services "]
["               are to be provided on a scheduled basis, the schedule is as follows:"]
[]
[null,null,{"$f":"Administration!A234","v":0}]
["               (Specify, or state “No schedule”)."]
[]
["               We will not discriminate against you in the provision of services or in any other manner,"]
["               on the grounds of Age, Ancestry, Color, Criminal Conviction, Familial Status, Lawful "]
["               Source of Income, Learning Disability, Marital Status, Mental Disorder, National Origin, "]
["               Physical Disability, Race, Religion, Mental Retardation, Sex, Sexual Orientation, Use of "]
["               a Guide Dog, or on any other grounds specified by federal or state law or regulation."]
[]
["               Inspections: We may not enter the apartment before the termination date of the Lease,  "]
["               except to inspect the premises, to make repairs, or to show the apartment to prospective "]
["               tenant or purchaser.  We will contact you before such entry in order to arrange a time "]
["               which would not unreasonably disturb you.  Only in case of an emergency may entry be "]
["               made without prior consent.  If such an emergency entry is made, you will be notified."]
[]
["                Repairs: We agree to complete the repairs listed below by the following dates:"]
[null,"Repairs",null,null,null,null,null,null,null,null,null,null,null,null,null,null,null,null,null,null,null,null,null,null,null,null,null,null,null,null,null,null,null,null,null,null,null,null,null,null,null,null,null,null,null,null,null,null,null,"Date"]
[{"$f":"IF(LEN(TRIM(B148))=0, \"\", \"1.\")","v":""},{"$f":"IF(Administration!B238<>\"\", Administration!B238, \"\")","v":""},null,null,null,null,null,null,null,null,null,null,null,null,null,null,null,null,null,null,null,null,null,null,null,null,null,null,null,null,null,null,null,null,null,null,null,null,null,null,null,null,null,null,null,null,null,{"$f":"IF(LEN(TRIM(B148))=0, \"\", \"1.\")","v":""},null,{"$f":"Administration!K238","v":"00:00:00"}]
[{"$f":"IF(LEN(TRIM(B149))=0, \"\", \"2.\")","v":""},{"$f":"IF(Administration!B239<>\"\", Administration!B239, \"\")","v":""},null,null,null,null,null,null,null,null,null,null,null,null,null,null,null,null,null,null,null,null,null,null,null,null,null,null,null,null,null,null,null,null,null,null,null,null,null,null,null,null,null,null,null,null,null,{"$f":"IF(LEN(TRIM(B149))=0, \"\", \"2.\")","v":""},null,{"$f":"Administration!K239","v":"00:00:00"}]
[{"$f":"IF(LEN(TRIM(B150))=0, \"\", \"3.\")","v":""},{"$f":"IF(Administration!B240<>\"\", Administration!B240, \"\")","v":""},null,null,null,null,null,null,null,null,null,null,null,null,null,null,null,null,null,null,null,null,null,null,null,null,null,null,null,null,null,null,null,null,null,null,null,null,null,null,null,null,null,null,null,null,null,{"$f":"IF(LEN(TRIM(B150))=0, \"\", \"3.\")","v":""},null,{"$f":"Administration!K240","v":"00:00:00"}]
[{"$f":"IF(LEN(TRIM(B151))=0, \"\", \"4.\")","v":""},{"$f":"IF(Administration!B241<>\"\", Administration!B241, \"\")","v":""},null,null,null,null,null,null,null,null,null,null,null,null,null,null,null,null,null,null,null,null,null,null,null,null,null,null,null,null,null,null,null,null,null,null,null,null,null,null,null,null,null,null,null,null,null,{"$f":"IF(LEN(TRIM(B151))=0, \"\", \"4.\")","v":""},null,{"$f":"Administration!K241","v":"00:00:00"}]
[{"$f":"IF(LEN(TRIM(B152))=0, \"\", \"5.\")","v":""},{"$f":"IF(Administration!B242<>\"\", Administration!B242, \"\")","v":""},null,null,null,null,null,null,null,null,null,null,null,null,null,null,null,null,null,null,null,null,null,null,null,null,null,null,null,null,null,null,null,null,null,null,null,null,null,null,null,null,null,null,null,null,null,{"$f":"IF(LEN(TRIM(B152))=0, \"\", \"5.\")","v":""},null,{"$f":"Administration!K242","v":"00:00:00"}]
[]
[]
[]
["12.",null,"Destruction of the Apartment:",null,null,null,null,null,null,null,null,null,null,null,null,null,null,null,"If the apartment is rendered uninhabitable "]
[null,null,"by fire, flood, or other natural disaster during the term of this Lease, or by "]
[null,null,"operation of law, this Lease will be terminated."]
[]
["13.",null,"Additional Provisions:",null,null,null,null,null,null,null,null,null,null,null,"If any, they are attached, dated, initialed by both "]
[null,null,"parties, and are a part of this Lease."]
[]
["14.",null,"Changes:",null,null,null,null,"No changes or additions to this Lease will be made except by "]
[null,null,"written agreement between you and us. This lease and any attachments represent "]
[null,null,"the entire agreement between you and us. "]
[]
["15.",null,"TERMINATION OF TENANCY:"]
[]
[null,null,"a.",null,null,null,"General:",null,null,null,null,null,null,null,"We may not terminate your right to occupy the apartment "]
[null,null,null,null,null,null,null,null,null,null,null,null,null,null,"except for the following reasons:"]
[]
[null,null,null,null,null,null,null,"i.",null,null,null,null,null,null,"Material noncompliance with the Lease."]
[]
[null,null,null,null,null,null,null,"ii.",null,null,null,null,null,null,"Material failure to carry out your obligations under the "]
[null,null,null,null,null,null,null,null,null,null,null,null,null,null,"State’s Landlord and Tenant Act (Chapter 830 of the "]
[null,null,null,null,null,null,null,null,null,null,null,null,null,null,"Connecticut General Statutes)."]
[]
[null,null,null,null,null,null,null,"iii.",null,null,null,null,null,null,"Other good cause, which may include your refusal to accept "]
[null,null,null,null,null,null,null,null,null,null,null,null,null,null,"a modification of the Lease form approved by DMHAS."]
[]
[null,null,null,null,null,null,null,"All terminations must be in accordance with the provisions of local law "]
[null,null,null,null,null,null,null,"and the State of Connecticut’s Landlord and Tenant Act and subparagraph "]
[null,null,null,null,null,null,null,"c of this paragraph."]
[]
[null,null,"b.",null,null,null,null,"NOTICE OF GOOD CAUSE:",null,null,null,null,null,null,null,null,null,null,null,null,null,null,null,null,null,null,null,null,null,"Your conduct cannot be considered "]
[null,null,null,null,null,null,null,"“other good cause” under paragraph 15(a) (iii) unless we have given you "]
[null,null,null,null,null,null,null,"prior notice that your conduct constitutes grounds for ending your Lease. "]
[null,null,null,null,null,null,null,"We must serve the notice in the same manner as that provided for in paragraph 5."]
[]
[]
["c.",null,"MATERIAL NONCOMPLIANCE:",null,null,null,null,null,null,null,null,null,null,null,null,null,null,null,null,null,null,null,null,"The term “material noncompliance with the "]
[null,null,"Lease” includes: "]
[]
[null,null,null,"i.",null,null,"One or more substantial violations of the Lease."]
[]
[null,null,null,"ii.",null,null,"Repeated minor violations of the Lease which disrupt the livability of the "]
[null,null,null,null,null,null,"building, adversely affect the health or safety of any persons or the right of "]
[null,null,null,null,null,null,"any tenant to the quiet enjoyment of the leased apartment and related "]
[null,null,null,null,null,null,"facilities, interfere with the management of the building or have an adverse "]
[null,null,null,null,null,null,"financial effect on the building."]
[]
[null,null,null,"iii.",null,null,"Non-payment of rent or any other financial obligation due under the Lease "]
[null,null,null,null,null,null,"(including any portion thereof) beyond any grace period permitted under "]
[null,null,null,null,null,null,"state law.  The payment of rent or any other financial obligation due under "]
[null,null,null,null,null,null,"the Lease after the due date but within the grace period permitted under "]
[null,null,null,null,null,null,"State law will constitute a minor violation."]
[]
[]
[]
["d.",null,null,"TERMINATION NOTICE:"]
[]
[null,null,null,"(1)","(1)",null,null,"We must give you a written notice of any proposed termination of the "]
[null,null,null,null,null,null,null,"Lease, stating the reasons and that the Lease is terminated on a certain day "]
[null,null,null,null,null,null,null,"and advising you that you have an opportunity to respond to us."]
[]
[null,null,null,"(2)","(2)",null,null,"When a termination notice is issued for “other good cause” paragraph 15 "]
[null,null,null,null,null,null,null,"(a) (iii), the notice will be effective, and it will so state, at the end of a term "]
[null,null,null,null,null,null,null,"and in accordance with the termination provisions of the Lease, but in no "]
[null,null,null,null,null,null,null,"case earlier than 30 days after you receive the notice.  Where the "]
[null,null,null,null,null,null,null,"termination notice is based on a material noncompliance with the Lease or "]
[null,null,null,null,null,null,null,"material failure to carry out the obligations under the State Landlord and "]
[null,null,null,null,null,null,null,"Tenant Act and paragraphs 15 (a) & (b) of this Lease, the time of service "]
[null,null,null,null,null,null,null,"must be in accordance with the Lease and State law."]
[]
[null,null,null,"(3)","(3)",null,null,"If any judicial action is instituted to evict you, we may not rely on any "]
[null,null,null,null,null,null,null,"reasons which are different from the reasons which we stated in the notice "]
[null,null,null,null,null,null,null,"to you.  A copy of the notice must be furnished to the Department of "]
[null,null,null,null,null,null,null,"Mental Health and Addiction Services at the same time we send the notice "]
[null,null,null,null,null,null,null,"to you."]
[]
["e.",null,null,null,null,null,null,"MODIFICATION OF THE LEASE FORM: We may, with the prior "]
[null,null,null,null,null,null,null,"approval of the Department of Mental Health and Addiction Services, "]
[null,null,null,null,null,null,null,"modify the terms and conditions of the Lease form effective at the end of "]
[null,null,null,null,null,null,null,"the first term or a following term, by serving an appropriate notice to you"]
[null,null,null,null,null,null,null,"together with the offer of a revised Lease or an addition revising the "]
[null,null,null,null,null,null,null,"existing Lease.  This notice and offer must be received by you at least 30 "]
[null,null,null,null,null,null,null,"days prior to the last day on which you have the right to terminate tenancy "]
[null,null,null,null,null,null,null,"without being bound by the modified terms and conditions.  You may "]
[null,null,null,null,null,null,null,"accept the modified terms and conditions by executing the revised Lease "]
[null,null,null,null,null,null,null,"or the revised addition which we offer you, or you may reject the modified"]
[null,null,null,null,null,null,null,"terms and conditions by giving us written notice in accordance with the "]
[null,null,null,null,null,null,null,"Lease that you intend to terminate the Lease.  Any increase in rent must in "]
[null,null,null,null,null,null,null,"all cases be governed by HUD requirements for the Continuum of Care Program."]
[]
[]
[]
["16.",null,"Not withstanding anything to the contrary contained in the Lease, any provision, "]
[null,null,"term, condition, covenant or agreement of the Lease which falls within the "]
[null,null,"classifications below shall be inapplicable."]
[]
[null,null,"(1)",null,null,null,"CONFESSION OF JUDGMENT:",null,null,null,null,null,null,null,null,null,null,null,null,null,null,null,null,null,null,"Consent by the Tenant to be sued, to "]
[null,null,null,null,null,null,"admit guilt, or to accept without question any judgment favoring the "]
[null,null,null,null,null,null,"Landlord in a lawsuit brought in connection with the Lease."]
[]
[]
[]
[]
[null,null,"(2)",null,null,null,"SEIZE OR HOLD PROPERTY FOR RENT OR OTHER CHARGES:"]
[null,null,null,null,null,null,"Authorization to the Landlord to take property of the Tenant and/or hold it "]
[null,null,null,null,null,null,"until the Tenant meets any obligation which the Landlord has determined  "]
[null,null,null,null,null,null,"the Tenant has failed to perform."]
[]
[null,null,"(3)",null,null,null,"EXCULPATORY CLAUSE:",null,null,null,null,null,null,null,null,null,null,null,null,null,null,null,"Prior agreement by the Tenant not to "]
[null,null,null,null,null,null,"hold the Landlord or its agents legally responsible for acts done "]
[null,null,null,null,null,null,"improperly or for failure to act when it was required to do so."]
[]
[null,null,"(4)",null,null,null,"WAIVER OF LEGAL NOTICE:",null,null,null,null,null,null,null,null,null,null,null,null,null,null,null,null,null,"Agreement by the Tenant that the "]
[null,null,null,null,null,null,"Landlord need not give any notices in connection with (1) a lawsuit "]
[null,null,null,null,null,null,"against the Tenant for eviction, money damages, or other purpose, or (2) "]
[null,null,null,null,null,null,"any other action affecting the Tenant’s rights under the Lease"]
[]
[null,null,"(5)",null,null,null,"WAIVER OF LEGAL PROCEEDINGS:",null,null,null,null,null,null,null,null,null,null,null,null,null,null,null,null,null,null,null,null,null,"Agreement by the Tenant to "]
[null,null,null,null,null,null,"allow eviction without a court determination."]
[]
[null,null,"(6)",null,null,null,"WAIVER OF JURY TRIAL:",null,null,null,null,null,null,null,null,null,null,null,null,null,null,null,"Authorization to the Landlord's lawyer to "]
[null,null,null,null,null,null,"give up the Tenant’s rights to trial by jury."]
[]
[null,null,"(7)",null,null,null,"WAIVER OF RIGHT TO APPEAL COURT DECISION: ",null,null,null,null,null,null,null,null,null,null,null,null,null,null,null,null,null,null,null,null,null,null,null,null,null,null,null,null,null,null,"Authorization to "]
[null,null,null,null,null,null,"the Landlord's lawyer to give up the Tenant’s right to appeal a decision on "]
[null,null,null,null,null,null,"the ground of judicial error or to give up the Tenant’s right to sue, to "]
[null,null,null,null,null,null,"prevent a judgment from being put into effect."]
[]
[null,null,"(8)",null,null,null,"TENANT CHARGEABLE WITH COST OF LEGAL ACTIONS "]
[null,null,null,null,null,null,"REGARDLESS OF OUTCOME OF LAWSUIT:",null,null,null,null,null,null,null,null,null,null,null,null,null,null,null,null,null,null,null,null,null,null,null,null,null,"Agreement by the "]
[null,null,null,null,null,null,"Tenant to pay lawyer’s fees or other legal cost whenever the Landlord "]
[null,null,null,null,null,null,"decides to sue the Tenant whether or not the Tenant wins."]
[]
["17.",null,"We hereby notify you that an operative fire sprinkler system ",null,null,null,null,null,null,null,null,null,null,null,null,null,null,null,null,null,null,null,null,null,null,null,null,null,null,null,null,null,null,null,null,null,null,{"$f":"Administration!F245","v":0}]
[null,null,"exist at the apartment."]
[]
[null,null,"If an operative fire sprinkler system exists at the apartment in accordance "]
[null,null,"with the foregoing paragraph, its last day of maintenance and inspection was "]
[null,null,{"$f":"Administration!A250","v":"00:00:00"},null,null,null,null,null,null,null,null,null,null,null,null,null,null,null,null,null,null,null,null,null,"."]
[]
[null,null,"As used in this paragraph, the term \"fire sprinkler system\" means a system "]
[null,null,"of piping and appurtenances designed and installed in accordance with "]
[null,null,"generally accepted standards so that heat from a fire will automatically cause "]
[null,null,"water to be discharged over the fire area to extinguish or prevent its further "]
[null,null,"spread."]
[]
[]
[]
[]
[]
[]
[]
["18.",null,"The parties to this Lease agree that we have disclosed to you the possible presence "]
[null,null,"of lead-based paint and/or lead-based paint hazards in the apartment, that you "]
[null,null,"have received the most current version of the Protect Your Family From Lead In "]
[null,null,"Your Home pamphlet approved by the federal Environmental Protection Agency, "]
[null,null,"and that both parties have completed a lead based paint disclosure statement."]
[]
["                     WHEREFORE, we, the undersigned, agree to this Lease, by signing two copies  (one to "]
["                      be kept by you and one by us)."]
[]
[null,null,{"$f":"Administration!C130","v":0}]
[null,null,null,null,null,null,null,null,null,null,null,null,null,null,null,null,null,null,null,null,null,null,null,null,null,null,null,null,null,{"$f":"Administration!C124","v":0}]
[]
[]
[null,null,"LANDLORD (print name) ",null,null,null,null,null,null,null,null,null,null,null,null,null,null,null,null,null,null,null,null,null,null,null,null,null,null,"TENANT (print name)"]
[]
[]
[]
[null,null,"(Signature) ",null,null,null,null,null,null,null,null,null,null,null,null,null,null,null,null,null,null,null,null,null,null,null,null,null,null,"(Signature) "]
[]
[]
[]
[]
[null,null,"(Date of Signature) ",null,null,null,null,null,null,null,null,null,null,null,null,null,null,null,null,null,null,null,null,null,null,null,null,null,null,"(Date of Signature) "]
[]
[]
[]
[null,null,"(Signature) ",null,null,null,null,null,null,null,null,null,null,null,null,null,null,null,null,null,null,null,null,null,null,null,null,null,null,"(Signature) "]
[]
[]
[null,null,"(Date of Signature) ",null,null,null,null,null,null,null,null,null,null,null,null,null,null,null,null,null,null,null,null,null,null,null,null,null,null,"(Date of Signature) "]
[]
[]
[]
[]
["Last edited"]
[{"$f":"LARGE(Sheet2!A180:M245,1)","v":"2024-03-14T09:42:23"}]
[{"$f":"Administration!A2","v":"Version 2.1"}]

{"sheet":"Occupancy Continuation Form 1","index":7,"n_rows":51,"n_cols":94,"rows_kept":51,"cut":false,"hidden":false,"merged":[[39,59,39,75],[40,59,40,75],[39,4,39,14],[40,4,40,14],[39,15,39,42],[40,15,40,42],[39,43,39,58],[40,43,40,58],[36,59,36,75],[37,59,37,75],[38,59,38,75],[21,12,21,37],[22,12,22,37],[21,38,21,48],[22,38,22,48],[21,49,21,53],[22,49,22,53],[21,54,21,64],[22,54,22,64],[21,65,21,71],[22,65,22,71],[21,72,21,88],[22,72,22,88],[35,4,35,14],[49,0,49,11],[12,38,15,48],[16,12,16,37],[17,12,17,37],[18,12,18,37],[19,12,19,37],[12,12,15,37],[16,38,16,48],[17,38,17,48],[18,38,18,48],[19,38,19,48],[46,12,46,88],[44,21,44,59],[36,4,36,14],[34,15,34,42],[38,43,38,58],[8,111,8,119],[9,111,9,119],[12,54,15,64],[12,49,15,53],[16,54,16,64],[16,49,16,53],[9,55,9,64],[10,4,10,88],[9,34,9,45],[9,77,9,88],[16,65,16,71],[16,72,16,88],[12,4,15,11],[12,65,15,71],[12,72,15,88],[24,37,24,88],[25,34,25,88],[26,4,26,88],[34,4,34,14],[35,15,35,42],[34,43,34,58],[35,43,35,58],[34,59,34,75],[35,59,35,75],[5,76,5,88],[6,49,6,88],[6,23,6,42],[17,49,17,53],[18,49,18,53],[17,65,17,71],[18,65,18,71],[17,72,17,88],[18,72,18,88],[19,49,19,53],[20,49,20,53],[19,54,19,64],[20,54,20,64],[19,72,19,88],[20,72,20,88],[19,65,19,71],[20,65,20,71],[44,71,44,82],[0,0,0,88],[1,0,1,88],[3,0,3,88],[48,0,48,4],[20,38,20,48],[20,12,20,37],[17,54,17,64],[18,54,18,64],[37,4,37,14],[37,15,37,42],[38,4,38,14],[38,15,38,42],[36,15,36,42],[36,43,36,58],[37,43,37,58]]}
["Continuum of Care Rental Assistance Program"]
["Department of Mental Health and Addiction Services"]
[]
["OCCUPANCY CONTINUATION FORM"]
[]
[null,null,null,null,null,null,null,null,null,null,null,null,null,null,null,null,null,null,null,null,null,null,null,null,null,null,null,null,null,null,null,null,null,null,null,null,null,null,null,null,null,null,null,null,null,null,null,null,null,null,null,null,null,null,null,null,null,null,null,null,null,null,null,null,null,null,null,null,null,null,null,"Date",null,null,null,null,{"$f":"IF(Administration!L257<>\"\", Administration!L257, \"\")","v":""}]
[null,null,null,null,"Telephone Nos.  Home",null,null,null,null,null,null,null,null,null,null,null,null,null,null,null,null,null,null,{"$f":"Administration!C14","v":0},null,null,null,null,null,null,null,null,null,null,null,null,null,null,null,null,null,null,null,"Work",null,null,null,null,null,{"$f":"Administration!C15","v":0}]
[null,null,null,null,null,null,null,null,null,null,null,null,null,null,null,null,null,null,null,null,null,null,null,null,null,null,null,null,null,null,null,null,null,null,null,null,null,null,null,null,null,null,null,null,null,null,null,null,null,null,null,null,null,null,null,null,null,null,null,null,null,null,null,null,null,null,null,null,null,null,null,null,null,null,null,null,null,null,null,null,null,null,null,null,null,null,null,null,null,null,null,null,1,true]
[null,null,null,null,"Household Status:  ",null,null,null,null,null,null,null,null,null,null,null,null,null,null,null,null,null,null,null,null,null,null,null,null,null,null,null,null,null,null,null,null,null,null,null,null,null,null,null,null,null,null,null,null,null,null,null,null,null,null,null,null,null,null,null,null,null,null,null,null,null,null,null,null,null,null,null,null,null,null,null,null,null,null,null,null,null,null,null,null,null,null,null,null,null,null,null,2,true]
[null,null,null,null,"Is the Head of Household 62 or older?",null,null,null,null,null,null,null,null,null,null,null,null,null,null,null,null,null,null,null,null,null,null,null,null,null,null,null,null,null,{"$f":"IF(DATEDIF(BC17, BY6, \"Y\") >= 62, \"yes\", \"No\")","v":{"$error":"#VALUE!"}},null,null,null,null,null,null,null,null,null,null,null,null,null,null,null,null,null,null,null,null,null,null,null,null,null,null,null,null,null,null,null,null,null,null,null,null,null,null,null,null,null,null,null,null,null,null,null,null,null,null,null,null,null,null,null,null,null,3,true]
[null,null,null,null,null,null,null,null,null,null,null,null,null,null,null,null,null,null,null,null,null,null,null,null,null,null,null,null,null,null,null,null,null,null,null,null,null,null,null,null,null,null,null,null,null,null,null,null,null,null,null,null,null,null,null,null,null,null,null,null,null,null,null,null,null,null,null,null,null,null,null,null,null,null,null,null,null,null,null,null,null,null,null,null,null,null,null,null,null,null,null,null,4,true]
[null,null,null,null,"FAMILY COMPOSITION",null,null,null,null,null,null,null,null,null,null,null,null,null,null,null,null,null,null,null,null,null,null,null,null,null,null,null,null,null,null,null,null,null,null,null,null,null,null,null,null,null,null,null,null,null,null,null,null,null,null,null,null,null,null,null,null,null,null,null,null,null,null,null,null,null,null,null,null,null,null,null,null,null,null,null,null,null,null,null,null,null,null,null,null,null,null,null,5,false]
[null,null,null,null,"Family Member",null,null,null,null,null,null,null,"Names of Persons to Live in Unit",null,null,null,null,null,null,null,null,null,null,null,null,null,null,null,null,null,null,null,null,null,null,null,null,null,"Relation to Family Head",null,null,null,null,null,null,null,null,null,null,"Sex",null,null,null,null," Date of Birth",null,null,null,null,null,null,null,null,null,null,"Student Yes/No",null,null,null,null,null,null,"Social Security #",null,null,null,null,null,null,null,null,null,null,null,null,null,null,null,null,null,null,null,6,false]
[null,null,null,null,null,null,null,null,null,null,null,null,null,null,null,null,null,null,null,null,null,null,null,null,null,null,null,null,null,null,null,null,null,null,null,null,null,null,null,null,null,null,null,null,null,null,null,null,null,null,null,null,null,null,null,null,null,null,null,null,null,null,null,null,null,null,null,null,null,null,null,null,null,null,null,null,null,null,null,null,null,null,null,null,null,null,null,null,null,null,null,null,7,false]
[]
[]
[null,null,null,null,"Head",null,null,null,null,null,null,null,{"$f":"Administration!B8","v":0},null,null,null,null,null,null,null,null,null,null,null,null,null,null,null,null,null,null,null,null,null,null,null,null,null,{"$f":"Administration!F263","v":"Self"},null,null,null,null,null,null,null,null,null,null,{"$f":"Administration!G263","v":0},null,null,null,null,{"$f":"Administration!C16","v":"00:00:00"},null,null,null,null,null,null,null,null,null,null,{"$f":"Administration!I263","v":0},null,null,null,null,null,null,{"$f":"Administration!D17","v":0}]
[null,null,null,null,2,null,null,null,null,null,null,null,{"$f":"Administration!B264","v":0},null,null,null,null,null,null,null,null,null,null,null,null,null,null,null,null,null,null,null,null,null,null,null,null,null,{"$f":"Administration!F264","v":0},null,null,null,null,null,null,null,null,null,null,{"$f":"Administration!G264","v":0},null,null,null,null,{"$f":"Administration!H264","v":"00:00:00"},null,null,null,null,null,null,null,null,null,null,{"$f":"Administration!I264","v":0},null,null,null,null,null,null,{"$f":"Administration!K264","v":0}]
[null,null,null,null,3,null,null,null,null,null,null,null,{"$f":"Administration!B265","v":0},null,null,null,null,null,null,null,null,null,null,null,null,null,null,null,null,null,null,null,null,null,null,null,null,null,{"$f":"Administration!F265","v":0},null,null,null,null,null,null,null,null,null,null,{"$f":"Administration!G265","v":0},null,null,null,null,{"$f":"Administration!H265","v":"00:00:00"},null,null,null,null,null,null,null,null,null,null,{"$f":"Administration!I265","v":0},null,null,null,null,null,null,{"$f":"Administration!K265","v":0}]
[null,null,null,null,4,null,null,null,null,null,null,null,{"$f":"Administration!B266","v":0},null,null,null,null,null,null,null,null,null,null,null,null,null,null,null,null,null,null,null,null,null,null,null,null,null,{"$f":"Administration!F266","v":0},null,null,null,null,null,null,null,null,null,null,{"$f":"Administration!G266","v":0},null,null,null,null,{"$f":"Administration!H266","v":"00:00:00"},null,null,null,null,null,null,null,null,null,null,{"$f":"Administration!I266","v":0},null,null,null,null,null,null,{"$f":"Administration!K266","v":0}]
[null,null,null,null,5,null,null,null,null,null,null,null,{"$f":"Administration!B267","v":0},null,null,null,null,null,null,null,null,null,null,null,null,null,null,null,null,null,null,null,null,null,null,null,null,null,{"$f":"Administration!F267","v":0},null,null,null,null,null,null,null,null,null,null,{"$f":"Administration!G267","v":0},null,null,null,null,{"$f":"Administration!H267","v":"00:00:00"},null,null,null,null,null,null,null,null,null,null,{"$f":"Administration!I267","v":0},null,null,null,null,null,null,{"$f":"Administration!K267","v":0}]
[null,null,null,null,6,null,null,null,null,null,null,null,{"$f":"Administration!B268","v":0},null,null,null,null,null,null,null,null,null,null,null,null,null,null,null,null,null,null,null,null,null,null,null,null,null,{"$f":"Administration!F268","v":0},null,null,null,null,null,null,null,null,null,null,{"$f":"Administration!G268","v":0},null,null,null,null,{"$f":"Administration!H268","v":"00:00:00"},null,null,null,null,null,null,null,null,null,null,{"$f":"Administration!I268","v":0},null,null,null,null,null,null,{"$f":"Administration!K268","v":0}]
[null,null,null,null,7,null,null,null,null,null,null,null,{"$f":"Administration!B269","v":0},null,null,null,null,null,null,null,null,null,null,null,null,null,null,null,null,null,null,null,null,null,null,null,null,null,{"$f":"Administration!F269","v":0},null,null,null,null,null,null,null,null,null,null,{"$f":"Administration!G269","v":0},null,null,null,null,{"$f":"Administration!H269","v":"00:00:00"},null,null,null,null,null,null,null,null,null,null,{"$f":"Administration!I269","v":0},null,null,null,null,null,null,{"$f":"Administration!K269","v":0}]
[]
[null,null,null,null,"List any changes expected in household:",null,null,null,null,null,null,null,null,null,null,null,null,null,null,null,null,null,null,null,null,null,null,null,null,null,null,null,null,null,null,null,null,{"$f":"Administration!E271","v":0}]
[null,null,null,null,"List School(s) attended by Students:",null,null,null,null,null,null,null,null,null,null,null,null,null,null,null,null,null,null,null,null,null,null,null,null,null,null,null,null,null,{"$f":"Administration!E272","v":0}]
[null,null,null,null,{"$f":"Administration!A273","v":0}]
[]
[null,null,null,null,"GROSS INCOME AND EMPLOYMENT: List everyone who is receiving income and/or working"]
[null,null,null,null,"You must include all income from employment, tips, TANF, pension, social security, unemployment "]
[null,null,null,null,"compensation, alimony, child support, educational stipends, veterans’ benefits, SNAP, "]
[null,null,null,null,"Medicare/Medicaid and/or any other public assistance.  "]
[null,null,null,null,"Family ",null,null,null,null,null,null,null,null,null,null,"Source of Income for"]
[null,null,null,null,"Member",null,null,null,null,null,null,null,null,null,null,"All Family Members",null,null,null,null,null,null,null,null,null,null,null,null,null,null,null,null,null,null,null,null,null,null,null,null,null,null,null,"Amount",null,null,null,null,null,null,null,null,null,null,null,null,null,null,null,"Per"]
[null,null,null,null,{"$f":"Administration!A283","v":"Head"},null,null,null,null,null,null,null,null,null,null,{"$f":"Administration!C283","v":0},null,null,null,null,null,null,null,null,null,null,null,null,null,null,null,null,null,null,null,null,null,null,null,null,null,null,null,{"$f":"Administration!F283","v":0},null,null,null,null,null,null,null,null,null,null,null,null,null,null,null,{"$f":"Administration!I283","v":0}]
[null,null,null,null,{"$f":"Administration!A284","v":0},null,null,null,null,null,null,null,null,null,null,{"$f":"Administration!C284","v":0},null,null,null,null,null,null,null,null,null,null,null,null,null,null,null,null,null,null,null,null,null,null,null,null,null,null,null,{"$f":"Administration!F284","v":0},null,null,null,null,null,null,null,null,null,null,null,null,null,null,null,{"$f":"Administration!I284","v":0}]
[null,null,null,null,{"$f":"Administration!A285","v":0},null,null,null,null,null,null,null,null,null,null,{"$f":"Administration!C285","v":0},null,null,null,null,null,null,null,null,null,null,null,null,null,null,null,null,null,null,null,null,null,null,null,null,null,null,null,{"$f":"Administration!F285","v":0},null,null,null,null,null,null,null,null,null,null,null,null,null,null,null,{"$f":"Administration!I285","v":0}]
[null,null,null,null,{"$f":"Administration!A286","v":0},null,null,null,null,null,null,null,null,null,null,{"$f":"Administration!C286","v":0},null,null,null,null,null,null,null,null,null,null,null,null,null,null,null,null,null,null,null,null,null,null,null,null,null,null,null,{"$f":"Administration!F286","v":0},null,null,null,null,null,null,null,null,null,null,null,null,null,null,null,{"$f":"Administration!I286","v":0}]
[null,null,null,null,{"$f":"Administration!A287","v":0},null,null,null,null,null,null,null,null,null,null,{"$f":"Administration!C287","v":0},null,null,null,null,null,null,null,null,null,null,null,null,null,null,null,null,null,null,null,null,null,null,null,null,null,null,null,{"$f":"Administration!F287","v":0},null,null,null,null,null,null,null,null,null,null,null,null,null,null,null,{"$f":"Administration!I287","v":0}]
[null,null,null,null,{"$f":"Administration!A288","v":0},null,null,null,null,null,null,null,null,null,null,{"$f":"Administration!C288","v":0},null,null,null,null,null,null,null,null,null,null,null,null,null,null,null,null,null,null,null,null,null,null,null,null,null,null,null,{"$f":"Administration!F288","v":0},null,null,null,null,null,null,null,null,null,null,null,null,null,null,null,{"$f":"Administration!I288","v":0}]
[null,null,null,null,{"$f":"Administration!A289","v":0},null,null,null,null,null,null,null,null,null,null,{"$f":"Administration!C289","v":0},null,null,null,null,null,null,null,null,null,null,null,null,null,null,null,null,null,null,null,null,null,null,null,null,null,null,null,{"$f":"Administration!F289","v":0},null,null,null,null,null,null,null,null,null,null,null,null,null,null,null,{"$f":"Administration!I289","v":0}]
[]
[null,null,null,null,"EMERGENCY CONTACT INFORMATION:  List person (family member, friend, sponsor, etc.) "]
[null,null,null,null,"who you would like the CoC Rental Assistance Program to contact in case of any emergencies."]
[null,null,null,null,"Emergency Contact:",null,null,null,null,null,null,null,null,null,null,null,null,null,null,null,null,{"$f":"Administration!C293","v":0},null,null,null,null,null,null,null,null,null,null,null,null,null,null,null,null,null,null,null,null,null,null,null,null,null,null,null,null,null,null,null,null,null,null,null,null,null,null,"Telephone #",null,null,null,null,null,null,null,null,null,null,{"$f":"Administration!L293","v":0}]
[]
[null,null,null,null,"Address: ",null,null,null,null,null,null,null,{"$f":"Administration!B295","v":0}]
[]
["Last edited"]
[{"$f":"LARGE(Sheet2!A253:M294,1)","v":"2024-03-14T09:42:24"}]
[{"$f":"Administration!A2","v":"Version 2.1"}]

{"sheet":"Occupancy Continuation Form 2","index":8,"n_rows":51,"n_cols":81,"rows_kept":51,"cut":false,"hidden":false,"merged":[[5,7,6,26],[5,27,6,35],[6,36,6,44],[16,42,16,54],[21,24,21,56],[13,14,13,54],[14,14,14,54],[7,7,7,26],[8,7,8,26],[9,7,9,26],[7,27,7,35],[8,27,8,35],[9,27,9,35],[7,36,7,44],[8,36,8,44],[9,36,9,44],[25,14,25,56],[29,15,29,56],[49,0,49,6],[33,14,33,56],[34,14,34,56],[48,0,48,4],[26,14,26,56],[43,12,43,35],[43,40,43,47]]}
["ASSETS"]
[]
["List all checking and savings accounts (including IRAs, Keogh accounts, and Certificate of Deposit). List the "]
["value of all stocks, bonds, trusts, pensions, or other assets owned by any household member."]
[]
["Family",null,null,null,null,null,null,"Bank Name ",null,null,null,null,null,null,null,null,null,null,null,null,null,null,null,null,null,null,null,"Type of Account"]
["Member",null,null,null,null,null,null,null,null,null,null,null,null,null,null,null,null,null,null,null,null,null,null,null,null,null,null,null,null,null,null,null,null,null,null,null,"Balance"]
["Head",null,null,null,null,null,null,{"$f":"Administration!C305","v":0},null,null,null,null,null,null,null,null,null,null,null,null,null,null,null,null,null,null,null,{"$f":"Administration!F305","v":0},null,null,null,null,null,null,null,null,{"$f":"Administration!H305","v":0}]
[2,null,null,null,null,null,null,{"$f":"Administration!C306","v":0},null,null,null,null,null,null,null,null,null,null,null,null,null,null,null,null,null,null,null,{"$f":"Administration!F306","v":0},null,null,null,null,null,null,null,null,{"$f":"Administration!H306","v":0}]
[3,null,null,null,null,null,null,{"$f":"Administration!C307","v":0},null,null,null,null,null,null,null,null,null,null,null,null,null,null,null,null,null,null,null,{"$f":"Administration!F307","v":0},null,null,null,null,null,null,null,null,{"$f":"Administration!H307","v":0}]
[null,"Yes",null,null,null,null,null,null,"No",null,null,null,null,null,null,null,null,null,null,null,null,null,null,null,null,null,null,null,null,null,null,null,null,null,null,null,null,null,null,null,null,null,null,null,null,null,null,null,null,null,null,null,null,null,null,null,null,null,null,null,null,null,null,null,null,null,null,null,null,null,null,null,null,null,null,null,null,null,null,false,11]
[null,null,null,null,null,null,null,null,null,null,null,null,null,null,"Do you have expenses for child care of a child aged 12 or younger?",null,null,null,null,null,null,null,null,null,null,null,null,null,null,null,null,null,null,null,null,null,null,null,null,null,null,null,null,null,null,null,null,null,null,null,null,null,null,null,null,null,null,null,null,null,null,null,null,null,null,null,null,null,null,null,null,null,null,null,null,null,null,null,null,false,12]
[null,null,null,null,null,null,null,null,null,null,null,null,null,null,"If yes, provide the name, address and telephone number of the care provider:",null,null,null,null,null,null,null,null,null,null,null,null,null,null,null,null,null,null,null,null,null,null,null,null,null,null,null,null,null,null,null,null,null,null,null,null,null,null,null,null,null,null,null,null,null,null,null,null,null,null,null,null,null,null,null,null,null,null,null,null,null,null,null,null,false,13]
[null,null,null,null,null,null,null,null,null,null,null,null,null,null,{"$f":"Administration!C311","v":0},null,null,null,null,null,null,null,null,null,null,null,null,null,null,null,null,null,null,null,null,null,null,null,null,null,null,null,null,null,null,null,null,null,null,null,null,null,null,null,null,null,null,null,null,null,null,null,null,null,null,null,null,null,null,null,null,null,null,null,null,null,null,null,null,false,14]
[null,null,null,null,null,null,null,null,null,null,null,null,null,null,{"$f":"Administration!C312","v":0},null,null,null,null,null,null,null,null,null,null,null,null,null,null,null,null,null,null,null,null,null,null,null,null,null,null,null,null,null,null,null,null,null,null,null,null,null,null,null,null,null,null,null,null,null,null,null,null,null,null,null,null,null,null,null,null,null,null,null,null,null,null,null,null,false,15]
[null,null,null,null,null,null,null,null,null,null,null,null,null,null,null,null,null,null,null,null,null,null,null,null,null,null,null,null,null,null,null,null,null,null,null,null,null,null,null,null,null,null,null,null,null,null,null,null,null,null,null,null,null,null,null,null,null,null,null,null,null,null,null,null,null,null,null,null,null,null,null,null,null,null,null,null,null,null,null,false,16]
[null,null,null,null,null,null,null,null,null,null,null,null,null,null,"What is the weekly cost to you of the child care? ",null,null,null,null,null,null,null,null,null,null,null,null,null,null,null,null,null,null,null,null,null,null,null,null,null,null,"$",{"$f":"Administration!G314","v":0},null,null,null,null,null,null,null,null,null,null,null,null,null,null,null,null,null,null,null,null,null,null,null,null,null,null,null,null,null,null,null,null,null,null,null,null,false,17]
[null,null,null,null,null,null,null,null,null,null,null,null,null,null,null,null,null,null,null,null,null,null,null,null,null,null,null,null,null,null,null,null,null,null,null,null,null,null,null,null,null,null,null,null,null,null,null,null,null,null,null,null,null,null,null,null,null,null,null,null,null,null,null,null,null,null,null,null,null,null,null,null,null,null,null,null,null,null,null,true,18]
[null,null,null,null,null,null,null,null,null,null,null,null,null,null,"Do you pay a care attendant or for any equipment for any handicapped or "]
[null,null,null,null,null,null,null,null,null,null,null,null,null,null,"disabled family member(s) necessary to permit that person or someone \telse in "]
[null,null,null,null,null,null,null,null,null,null,null,null,null,null,"the household to work? If so, what is the cost to you for the care attendant and/or "]
[null,null,null,null,null,null,null,null,null,null,null,null,null,null,"the equipment?  $",null,null,null,null,null,null,null,null,null,{"$f":"Administration!E319","v":0}]
[]
[null,null,null,null,null,null,null,null,null,null,null,null,null,null,"Do you have outstanding medical bills which you are paying? If yes list "]
[null,null,null,null,null,null,null,null,null,null,null,null,null,null,"them below."]
[null,null,null,null,null,null,null,null,null,null,null,null,null,null,{"$f":"Administration!C323","v":0}]
[null,null,null,null,null,null,null,null,null,null,null,null,null,null,{"$f":"Administration!C324","v":0}]
[]
[null,null,null,null,null,null,null,null,null,null,null,null,null,null,"What medical expenses do you expect to incur in the next twelve months?"]
[null,null,null,null,null,null,null,null,null,null,null,null,null,null,"$",{"$f":"Administration!C327","v":0}]
[]
[null,null,null,null,null,null,null,null,null,null,null,null,null,null,"Do you have a conservator (of person or finances)?  If so please provide the "]
[null,null,null,null,null,null,null,null,null,null,null,null,null,null,"name, address and type of conservator:"]
[null,null,null,null,null,null,null,null,null,null,null,null,null,null,{"$f":"Administration!C332","v":0}]
[null,null,null,null,null,null,null,null,null,null,null,null,null,null,{"$f":"Administration!C333","v":0}]
[]
[]
[null,"APPLICANT CERTIFICATION"]
[null,"I certify that the information given to the Department of Mental Health and Addiction Services on household "]
[null,"composition, income, net family assets, and allowances and deductions is accurate and complete to the best of "]
[null,"my knowledge and belief. I understand that false statements or information are grounds for termination of "]
[null,"housing assistance and termination of tenancy."]
[]
[null,"Signature of Head:",null,null,null,null,null,null,null,null,null,null,{"$f":"Administration!C336","v":0},null,null,null,null,null,null,null,null,null,null,null,null,null,null,null,null,null,null,null,null,null,null,null,"Date:",null,null,null,{"$f":"IF(Administration!C338<>\"\", Administration!C338, \"\")","v":""}]
[]
[]
[]
[]
["Last Edited"]
[{"$f":"LARGE(Sheet2!A303:M341,1)","v":"2024-03-13T14:41:01"}]
[{"$f":"Administration!A2","v":"Version 2.1"}]

{"sheet":"Payment Notification Approval","index":9,"n_rows":46,"n_cols":61,"rows_kept":46,"cut":false,"hidden":false,"merged":[[1,103,1,109],[33,0,33,31],[36,4,36,39],[37,4,37,39],[30,0,30,10],[4,0,4,9],[10,0,10,64],[6,0,6,37],[20,0,20,59],[44,0,44,10],[12,0,12,53],[14,0,14,2],[12,97,12,102],[43,0,43,6],[21,9,21,15],[21,23,21,29],[21,33,21,39],[21,58,21,62]]}
[]
[]
[]
[]
[{"$f":"IF(Administration!B345<>\"\", Administration!B345, \"\")","v":""}]
[]
[{"$f":"Administration!D351","v":0}]
[{"$f":"Administration!C9&\" \"&Sheet2!J2&\" \"&Administration!B10","v":"  "}]
[{"$f":"Administration!E126&\" \"&Administration!G126&\" \"&Administration!I126","v":"0 0 0"}]
[]
["COC Rental Assistance Program Approval"]
[]
[]
[]
["Dear",null,null,{"$f":"Administration!D351&\",\"","v":"0,"}]
[]
["I am pleased to inform you that you have been approved for the CoC Rental Assistance Program"]
["in the dwelling unit leased by you.  "]
[]
["The Monthly Contract Rent for the unit rented from:"]
[{"$f":"Administration!F353","v":0},null,null,null,null,null,null,null,null,null,null,null,null,null,null,null,null,null,null,null,null,null,null,null,null,null,null,null,null,null,null,null,null,null,null,null,null,null,null,null,null,null,null,null,null,null,null,null,null,null,null,null,null,null,null,null,null,null,null,null,", for the"]
["term beginning",null,null,null,null,null,null,null,null,{"$f":"IF(Administration!C356<>\"\", Administration!C356, \"\")","v":"00:00:00"},null,null,null,null,null,null,"and ending",null,null,null,null,null,null,{"$f":"IF(Administration!F356<>\"\", Administration!F356, \"\")","v":"00:00:00"},null,null,null,null,null,null,null,"is",null,{"$f":"Administration!C358","v":0},null,null,null,null,null,null,"and your tenant portion is ",null,null,null,null,null,null,null,null,null,null,null,null,null,null,null,null,null,{"$f":"Administration!F358","v":0}]
["This is 30% of your yearly adjusted income.  "]
[]
["You will be receiving the executed lease for your records shortly.  If you have any questions, please "]
["call me at telephone number: ",null,null,null,null,null,null,null,null,null,null,null,null,null,null,null,null,{"$f":"Administration!E362","v":0}]
[]
["Please report (Within 10 days) any changes in family composition and/or income changes of more "]
["than $40 per month.  (Income change should be expected to be ongoing)."]
[]
["Sincerely,"]
[]
[{"$f":"Administration!E360","v":0}]
[{"$f":"Administration!E361","v":0}]
[]
["PC:"]
[null,null,null,null,{"$f":"Administration!B364","v":0}]
[null,null,null,null,{"$f":"Administration!B365","v":0}]
[]
[]
[]
[]
[]
["Last edited"]
[{"$f":"LARGE(Sheet2!A348:J367,1)","v":"2024-03-14T09:42:23"}]
[{"$f":"Administration!A2","v":"Version 2.1"}]

{"sheet":"Rent Reasonableness","index":10,"n_rows":55,"n_cols":104,"rows_kept":55,"cut":false,"hidden":false,"merged":[[3,19,3,39],[2,9,2,55],[14,56,17,71],[14,72,17,87],[11,40,12,55],[14,40,17,55],[5,40,8,55],[5,56,8,71],[5,72,8,87],[13,2,13,23],[10,2,10,23],[4,24,4,39],[10,24,10,39],[9,24,9,39],[5,24,8,39],[18,56,24,71],[18,40,24,55],[18,24,24,39],[25,24,25,39],[25,56,25,71],[25,40,25,55],[28,56,28,71],[29,56,29,71],[27,56,27,71],[26,40,26,55],[27,24,27,39],[26,56,26,71],[29,40,29,55],[27,40,27,55],[28,40,28,55],[18,2,18,23],[13,24,13,39],[11,2,12,23],[39,11,39,21],[32,24,32,39],[30,24,30,39],[31,24,31,39],[14,24,17,39],[11,24,12,39],[28,24,28,39],[26,24,26,39],[29,24,29,39],[39,34,39,48],[20,2,20,23],[22,2,22,23],[24,2,24,23],[42,64,42,74],[52,61,52,70],[49,35,49,36],[45,43,45,48],[49,41,49,42],[52,23,52,55],[39,54,39,71],[30,40,30,55],[33,72,33,87],[32,40,32,55],[30,56,30,71],[31,56,31,71],[32,56,32,71],[30,72,30,87],[31,72,31,87],[32,72,32,87],[33,40,33,55],[33,56,33,71],[31,40,31,55],[11,124,11,132],[2,133,2,142],[27,72,27,87],[28,72,28,87],[29,72,29,87],[25,72,25,87],[26,72,26,87],[4,72,4,87],[9,72,9,87],[11,72,12,87],[18,72,24,87],[54,0,54,18],[0,2,0,87],[10,40,10,55],[10,56,10,71],[10,72,10,87],[13,40,13,55],[13,56,13,71],[13,72,13,87],[4,40,4,55],[4,56,4,71],[9,40,9,55],[9,56,9,71],[11,56,12,71],[33,24,33,39],[5,2,8,23],[9,2,9,23]]}
[null,null,"RENT REASONABLENESS CHECKLIST AND CERTIFICATION"]
[]
[null,null,"Name:",null,null,null,null,null,null,{"$f":"Administration!B8","v":0}]
[null,null,"Contract Number: ",null,null,null,null,null,null,null,null,null,null,null,null,null,null,null,null,{"$f":"Administration!C5","v":0}]
[null,null,null,null,null,null,null,null,null,null,null,null,null,null,null,null,null,null,null,null,null,null,null,null,"Proposed Unit",null,null,null,null,null,null,null,null,null,null,null,null,null,null,null,"Unit #1",null,null,null,null,null,null,null,null,null,null,null,null,null,null,null,"Unit #2",null,null,null,null,null,null,null,null,null,null,null,null,null,null,null,"Unit #3"]
[null,null,"Address",null,null,null,null,null,null,null,null,null,null,null,null,null,null,null,null,null,null,null,null,null,{"$f":"Administration!C9&\" \"&Sheet2!J2&\" \"&Administration!B10&\" \"&Administration!B11&\" \"&Administration!B12&\" \"&Administration!B13","v":"     "},null,null,null,null,null,null,null,null,null,null,null,null,null,null,null,{"$f":"Administration!F371","v":0},null,null,null,null,null,null,null,null,null,null,null,null,null,null,null,{"$f":"Administration!H371","v":0},null,null,null,null,null,null,null,null,null,null,null,null,null,null,null,{"$f":"Administration!J371","v":0}]
[]
[]
[]
[null,null,"Number of Bedrooms",null,null,null,null,null,null,null,null,null,null,null,null,null,null,null,null,null,null,null,null,null,{"$f":"Administration!D375","v":0},null,null,null,null,null,null,null,null,null,null,null,null,null,null,null,{"$f":"Administration!F375","v":0},null,null,null,null,null,null,null,null,null,null,null,null,null,null,null,{"$f":"Administration!H375","v":0},null,null,null,null,null,null,null,null,null,null,null,null,null,null,null,{"$f":"Administration!J375","v":0}]
[null,null,"Square Feet",null,null,null,null,null,null,null,null,null,null,null,null,null,null,null,null,null,null,null,null,null,{"$f":"Administration!D376","v":0},null,null,null,null,null,null,null,null,null,null,null,null,null,null,null,{"$f":"Administration!F376","v":0},null,null,null,null,null,null,null,null,null,null,null,null,null,null,null,{"$f":"Administration!H376","v":0},null,null,null,null,null,null,null,null,null,null,null,null,null,null,null,{"$f":"Administration!J376","v":0}]
[null,null,"Type of Unit/Construction",null,null,null,null,null,null,null,null,null,null,null,null,null,null,null,null,null,null,null,null,null,{"$f":"Administration!D377","v":0},null,null,null,null,null,null,null,null,null,null,null,null,null,null,null,{"$f":"Administration!F377","v":0},null,null,null,null,null,null,null,null,null,null,null,null,null,null,null,{"$f":"Administration!H377","v":0},null,null,null,null,null,null,null,null,null,null,null,null,null,null,null,{"$f":"Administration!J377","v":0}]
[]
[null,null,"Housing Condition",null,null,null,null,null,null,null,null,null,null,null,null,null,null,null,null,null,null,null,null,null,{"$f":"Administration!D379","v":0},null,null,null,null,null,null,null,null,null,null,null,null,null,null,null,{"$f":"Administration!F379","v":0},null,null,null,null,null,null,null,null,null,null,null,null,null,null,null,{"$f":"Administration!H379","v":0},null,null,null,null,null,null,null,null,null,null,null,null,null,null,null,{"$f":"Administration!J379","v":0}]
[null,null,"Location/Accessibility:",null,null,null,null,null,null,null,null,null,null,null,null,null,null,null,null,null,null,null,null,null,{"$f":"Administration!D380","v":0},null,null,null,null,null,null,null,null,null,null,null,null,null,null,null,{"$f":"Administration!F380","v":0},null,null,null,null,null,null,null,null,null,null,null,null,null,null,null,{"$f":"Administration!H380","v":0},null,null,null,null,null,null,null,null,null,null,null,null,null,null,null,{"$f":"Administration!J380","v":0}]
[]
[]
[]
[null,null,"Amenities",null,null,null,null,null,null,null,null,null,null,null,null,null,null,null,null,null,null,null,null,null,{"$f":"Administration!D386","v":0},null,null,null,null,null,null,null,null,null,null,null,null,null,null,null,{"$f":"Administration!F386","v":0},null,null,null,null,null,null,null,null,null,null,null,null,null,null,null,{"$f":"Administration!H386","v":0},null,null,null,null,null,null,null,null,null,null,null,null,null,null,null,{"$f":"Administration!J386","v":0}]
[]
[null,null,"Unit:"]
[]
[null,null,"Site:"]
[]
[null,null,"Neighborhood:"]
[null,null,"Age in Years",null,null,null,null,null,null,null,null,null,null,null,null,null,null,null,null,null,null,null,null,null,{"$f":"Administration!D394","v":0},null,null,null,null,null,null,null,null,null,null,null,null,null,null,null,{"$f":"Administration!F394","v":0},null,null,null,null,null,null,null,null,null,null,null,null,null,null,null,{"$f":"Administration!H394","v":0},null,null,null,null,null,null,null,null,null,null,null,null,null,null,null,{"$f":"Administration!J394","v":0}]
[null,null,"Utilities (type)",null,null,null,null,null,null,null,null,null,null,null,null,null,null,null,null,null,null,null,null,null,{"$f":"Administration!D395","v":0},null,null,null,null,null,null,null,null,null,null,null,null,null,null,null,{"$f":"Administration!F395","v":0},null,null,null,null,null,null,null,null,null,null,null,null,null,null,null,{"$f":"Administration!H395","v":0},null,null,null,null,null,null,null,null,null,null,null,null,null,null,null,{"$f":"Administration!J395","v":0}]
[null,null,null,null,null,null,null,null,null,null,null,null,null,null,null,null,null,null,null,null,null,null,null,null,{"$f":"Administration!D396","v":0},null,null,null,null,null,null,null,null,null,null,null,null,null,null,null,{"$f":"Administration!F396","v":0},null,null,null,null,null,null,null,null,null,null,null,null,null,null,null,{"$f":"Administration!H396","v":0},null,null,null,null,null,null,null,null,null,null,null,null,null,null,null,{"$f":"Administration!J396","v":0}]
[null,null,null,null,null,null,null,null,null,null,null,null,null,null,null,null,null,null,null,null,null,null,null,null,{"$f":"Administration!D397","v":0},null,null,null,null,null,null,null,null,null,null,null,null,null,null,null,{"$f":"Administration!F397","v":0},null,null,null,null,null,null,null,null,null,null,null,null,null,null,null,{"$f":"Administration!H397","v":0},null,null,null,null,null,null,null,null,null,null,null,null,null,null,null,{"$f":"Administration!J397","v":0},null,null,null,null,null,null,null,null,null,null,null,null,null,null,null,null,null,null,null,null,null,null,null,null,null,null,null,null,null,null,false]
[null,null,null,null,null,null,null,null,null,null,null,null,null,null,null,null,null,null,null,null,null,null,null,null,{"$f":"Administration!D398","v":0},null,null,null,null,null,null,null,null,null,null,null,null,null,null,null,{"$f":"Administration!F398","v":0},null,null,null,null,null,null,null,null,null,null,null,null,null,null,null,{"$f":"Administration!H398","v":0},null,null,null,null,null,null,null,null,null,null,null,null,null,null,null,{"$f":"Administration!J398","v":0},null,null,null,null,null,null,null,null,null,null,null,null,null,null,null,null,null,null,null,null,null,null,null,null,null,null,null,null,null,null,false]
[null,null,"Unit Rent",null,null,null,null,null,null,null,null,null,null,null,null,null,null,null,null,null,null,null,null,null,{"$f":"Administration!D401","v":0},null,null,null,null,null,null,null,null,null,null,null,null,null,null,null,{"$f":"Administration!F401","v":0},null,null,null,null,null,null,null,null,null,null,null,null,null,null,null,{"$f":"Administration!H401","v":0},null,null,null,null,null,null,null,null,null,null,null,null,null,null,null,{"$f":"Administration!J401","v":0}]
[null,null,"Utility Allowance",null,null,null,null,null,null,null,null,null,null,null,null,null,null,null,null,null,null,null,null,null,{"$f":"Administration!D402","v":0},null,null,null,null,null,null,null,null,null,null,null,null,null,null,null,{"$f":"Administration!F402","v":0},null,null,null,null,null,null,null,null,null,null,null,null,null,null,null,{"$f":"Administration!H402","v":0},null,null,null,null,null,null,null,null,null,null,null,null,null,null,null,{"$f":"Administration!J402","v":0}]
[null,null,"Gross Rent",null,null,null,null,null,null,null,null,null,null,null,null,null,null,null,null,null,null,null,null,null,{"$f":"Administration!D403","v":0},null,null,null,null,null,null,null,null,null,null,null,null,null,null,null,{"$f":"Administration!F403","v":0},null,null,null,null,null,null,null,null,null,null,null,null,null,null,null,{"$f":"Administration!H403","v":0},null,null,null,null,null,null,null,null,null,null,null,null,null,null,null,{"$f":"Administration!J403","v":0}]
[null,null,"Handicap Accessible?",null,null,null,null,null,null,null,null,null,null,null,null,null,null,null,null,null,null,null,null,null,{"$f":"Administration!D404","v":0},null,null,null,null,null,null,null,null,null,null,null,null,null,null,null,{"$f":"Administration!F404","v":0},null,null,null,null,null,null,null,null,null,null,null,null,null,null,null,{"$f":"Administration!H404","v":0},null,null,null,null,null,null,null,null,null,null,null,null,null,null,null,{"$f":"Administration!J404","v":0}]
[]
[null,null,null,null,null,null,null,null,null,null,null,"CERTIFICATION:"]
[]
[null,null,null,null,null,null,null,null,null,null,null,"A.  Compliance with Payment Standard"]
[]
[null,null,null,null,null,null,null,null,null,null,null,{"$f":"Administration!B410","v":0},null,null,null,null,null,null,null,null,null,null,null,null,null,null,null,null,null,null,null,null,null,null,{"$f":"Administration!E410","v":0},null,null,null,null,null,null,null,null,null,null,null,null,null,null,null,null," ",null,null,{"$f":"Administration!G410","v":0}]
[null,null,null,null,null,null,null,null,null,null,null,"Proposed Contract Rent   +  Utility Allowance    =   Proposed Gross Rent"]
[]
[null,null,null,null,null,null,null,null,null,null,null,"Approved rent does not exceed Fair Market Rent (FMR) of",null,null,null,null,null,null,null,null,null,null,null,null,null,null,null,null,null,null,null,null,null,null,null,null,null,null,null,null,null,null,null,null,null,null,null,null,null,null,null,null,null,null,null,null,null,null,null,null,null,null,null,null,{"$f":"Administration!F413","v":0}]
[]
[null,null,null,null,null,null,null,null,null,null,null,"If the proposed gross rent exceeds the FMR is it less than or equal to the gross rent of "]
[null,null,null,null,null,null,null,null,null,null,null,"each comparable unit shown above?   ",null,null,null,null,null,null,null,null,null,null,null,null,null,null,null,null,null,null,null,null,null,null,null,null,null,null,null,null,null,null,null,{"$f":"Administration!F418","v":0}]
[]
[null,null,null,null,null,null,null,null,null,null,null,"B.  Rent Reasonableness"]
[null,null,null,null,null,null,null,null,null,null,null,"Based upon a comparison with rents for comparable units, I have determined that the "]
[null,null,null,null,null,null,null,null,null,null,null,"proposed rent for the unit",null,null,null,null,null,null,null,null,null,null,null,null,null,null,null,null,null,null,null,null,null,null,null,null,null,null,"is",null," ",null,null,null,"is not reasonable."]
[]
[]
[null,null,"Preparer's typed name:",null,null,null,null,null,null,null,null,null,null,null,null,null,null,null,null,null,null,null,null,{"$f":"Administration!C426","v":0},null,null,null,null,null,null,null,null,null,null,null,null,null,null,null,null,null,null,null,null,null,null,null,null,null,null,null,null,null,null,null,null,"Date: ",null,null,null,null,{"$f":"IF(Administration!I426<>\"\", Administration!I426, \"\")","v":""}]
["Last edited",null,null,null,null,null,null,null,null,null,null,null,null,null,null,null,null,null,null,null,null,null,null,null,null,null,null,null,null,null,null,null,null,null,null,null,null,null,null,null,null,null,null,null,null,null,null,null,null,null,null,null,null,null,null,null,null,null,null,null,null,null,null,null,null,null,null,null,null,null,"Rev. 02/26/2020"]
[{"$f":"LARGE(Sheet2!A372:J429,1)","v":"2024-03-14T09:42:23"},null,null,null,null,null,null,null,null,null,null,null,null,null,null,null,null,null,null,null,null,null,null,null,null,null,null,null,null,null,null,null,null,null,null,null,null,null,null,null,null,null,null,null,null,null,null,null,null,null,null,null,null,null,null,null,null,null,null,null,null,null,null,null,null,null,null,null,null,null,null,null,null,null,null,{"$f":"Administration!A2","v":"Version 2.1"}]

{"sheet":"Notification of Annual Review","index":11,"n_rows":46,"n_cols":47,"rows_kept":46,"cut":false,"hidden":false,"merged":[[37,4,37,48],[38,4,38,48],[44,0,44,13],[4,4,4,15],[4,94,4,102],[6,4,6,39],[13,89,13,96],[29,29,29,56],[17,46,17,58],[32,24,32,35]]}
[]
[]
[]
[]
[null,null,null,null,{"$f":"IF(Administration!B432<>\"\", Administration!B432, \"\")","v":""}]
[]
[null,null,null,null,{"$f":"Administration!C436","v":","}]
[null,null,null,null,{"$f":"Administration!C9&\" \"&Sheet2!J2&\" \"&Administration!B10","v":"  "}]
[null,null,null,null,{"$f":"Administration!B11&\"  \"&Administration!B12&\"  \"&Administration!B13","v":"    "}]
[]
[null,null,null,null,"CoC Rental Assistance Program"]
[null,null,null,null,null,null,null,null," Notice of Re-certification and Inspection"]
[]
[null,null,null,null,"Dear",null,null,null,null,{"$f":"Administration!C436","v":","}]
[]
[null,null,null,null,"You are currently participating in the CoC Rental Assistance Program through the State of Connecticut"]
[null,null,null,null,"Department of Mental Health and Addiction Services. Our records show that you are due for your"]
[null,null,null,null,"annual re-certification and that your current lease expires",null,null,null,null,null,null,null,null,null,null,null,null,null,null,null,null,null,null,null,null,null,null,null,null,null,null,null,null,null,null,null,null,null,null,null,null,null,null,null,null,null,{"$f":"IF(ISNUMBER(Administration!D434), TEXT(Administration!D434, \"MM/DD/YYYY\") & \".\", \"\")","v":""}]
[]
[null,null,null,null,"In order to process your annual re-certification, the CoC Rental Assistance Program is required by "]
[null,null,null,null,"Federal regulations to obtain income information from you and all adults 18 years of age and older in"]
[null,null,null,null,"your household. You must provide current income verification from all sources of income received,"]
[null,null,null,null,"including any entitlements, pension, unemployment assistance, or the four most recent pay stubs from "]
[null,null,null,null,"your employment, etc."]
[]
[null,null,null,null,"Please submit this information as soon as possible in the included postage paid, self addressed"]
[null,null,null,null,"envelope provided for your convenience."]
[]
[null,null,null,null,"In addition, an annual inspection must also be completed during this re-certification process. Your"]
[null,null,null,null,"annual inspection is scheduled for",null,null,null,null,null,null,null,null,null,null,null,null,null,null,null,null,null,null,null,null,null,null,null,null,{"$f":"Administration!E445&\", \"&TEXT(Administration!E443,\"MM/DD/YYYY\")&\", \"&\"at \"&Administration!E444","v":", 01/00/1900, at "}]
[null,null,null,null,"At the time of inspection additional paperwork/forms will be completed and signed."]
[]
[null,null,null,null,"Please contact this office at",null,null,null,null,null,null,null,null,null,null,null,null,null,null,null,null,null,null,null,{"$f":"Administration!E440","v":0},null,null,null,null,null,null,null,null,null,null,null,"to confirm that you will be available for the inspection"]
[null,null,null,null,"date listed above or if you need to request another date and time."]
[]
[null,null,null,null,"Sincerely, "]
[]
[null,null,null,null,{"$f":"Administration!C438","v":0}]
[null,null,null,null,{"$f":"Administration!C439","v":0}]
[]
[null,null,null,null,"cc:    Case Manager"]
[null,null,null,null,null,null,null,null,"Property Manager"]
[null,null,null,null,null,null,null,null,"File"]
["Last edited"]
[{"$f":"LARGE(Sheet2!A434:F445,1)","v":"2024-03-13T14:42:43"}]
[{"$f":"Administration!A2","v":"Version 2.1"}]

{"sheet":"VAWA Lease Addendum","index":12,"n_rows":53,"n_cols":41,"rows_kept":53,"cut":false,"hidden":false,"merged":[[5,36,7,48],[24,21,24,33],[0,0,0,49],[2,0,2,49],[49,4,49,37],[49,40,49,46],[1,0,1,48],[4,2,4,16],[4,17,4,35],[5,2,7,16],[5,17,7,35],[51,0,51,8],[48,4,48,37],[48,40,48,46],[45,4,45,37],[45,40,45,46],[46,4,46,37],[46,40,46,46]]}
["VAWA LEASE ADDENDUM"]
[]
["                        VIOLENCE AGAINST WOMEN REAUTHORIZATION ACT OF 2013"]
[]
[null,null,"TENANT",null,null,null,null,null,null,null,null,null,null,null,null,null,null,"LANDLORD",null,null,null,null,null,null,null,null,null,null,null,null,null,null,null,null,null,null,"UNIT NO. & ADDRESS"]
[null,null,{"$f":"Administration!B8","v":0},null,null,null,null,null,null,null,null,null,null,null,null,null,null,{"$f":"Administration!B21","v":0},null,null,null,null,null,null,null,null,null,null,null,null,null,null,null,null,null,null,{"$f":"Administration!C9&\" \"&Sheet2!J2&\" \"&Administration!B10&\" \"&Administration!B11&\" \"&Administration!B12&\" \"&Administration!B13","v":"     "}]
[]
[]
[]
[null,null,"This Lease Addendum adds the following paragraphs to the Lease between the above-referenced "]
[null,null,"Tenant and Landlord."]
[]
[null,null,{"$f":"1&\".\"","v":"1."},null,null,"Purpose of the addendum"]
[]
[null,null,"The Lease for the above referenced unit is being amended to include the provisions of the Violence"]
[null,null," Against Women Reauthorization Act of 2013 (VAWA).  "]
[]
[null,null,{"$f":"2&\".\"","v":"2."},null,null,"Conflicts with Other Provisions of the Lease"]
[]
[null,null,"In case of any conflict between the provisions of this Addendum and other sections of the Lease, "]
[null,null,"the provisions of this Addendum shall prevail."]
[]
[null,null,{"$f":"3&\".\"","v":"3."},null,null,"Effective Date; Term of the Lease Addendum"]
[]
[null,null,"The effective date of this Lease Addendum is ",null,null,null,null,null,null,null,null,null,null,null,null,null,null,null,null,null,null,{"$f":"IF(Administration!E453<>\"\", Administration!E453, \"\")","v":""}]
[null,null,"This Lease Addendum shall continue to be in effect until the Lease is terminated. "]
[]
[null,null,{"$f":"4&\".\"","v":"4."},null,null,"VAWA Protections"]
[]
[null,null,"A.",null,null,"The Landlord may not consider incidents of domestic violence, dating violence, sexual assault"]
[null,null,null,null,null,"or stalking as serious or repeated violations of the lease or other “good cause” for termination"]
[null,null,null,null,null,"of assistance, tenancy or occupancy rights of the victim of abuse.  "]
[null,null,"B.",null,null,"The Landlord may not consider criminal activity directly relating to abuse, engaged in by a member of"]
[null,null,null,null,null,"a tenant’s household or any guest or other person under the tenant’s control, cause for termination "]
[null,null,null,null,null,"of assistance, tenancy, or occupancy rights if the tenant or an affiliated individual of the tenant is the "]
[null,null,null,null,null,"victim or threatened victim of that abuse."]
[null,null,"C.",null,null,"The Landlord may request in writing that the victim or an affiliated individual of the tenant certify"]
[null,null,null,null,null,"that the individual is a victim of abuse and that the tenant complete and submit documentation of"]
[null,null,null,null,null,"abuse, using the Certification of Domestic Violence, Dating Violence, Sexual Assault or Stalking "]
[null,null,null,null,null,"(Form HUD-50066 or HUD-91066), or other documentation as noted on the certification form, to "]
[null,null,null,null,null,"receive protection under the VAWA.  Failure to provide the documentation within 14 business days of "]
[null,null,null,null,null,"request, or an agreed upon extension date, may result in eviction."]
[null,null,"D.",null,null,"Any information submitted to the Landlord will be kept confidential and will not be disclosed to any "]
[null,null,null,null,null,"other individual or entity except if disclosure is consented to by the victim, is required for an eviction "]
[null,null,null,null,null,"or is otherwise required by law. "]
[null,null,null,null,null,null,null,null,null,null,null,null,null,null,null,null,null,null,null,null,null,null,null,null,null,null,null,null,null,null,null,null,null,null,null,null,null,null,null,null,{"$f":"IF(Administration!I451<>\"\", Administration!I451, \"\")","v":""}]
[null,null,null,null,"Tenant (head of household)",null,null,null,null,null,null,null,null,null,null,null,null,null,null,null,null,null,null,null,null,null,null,null,null,null,null,null,null,null,null,null,null,null,null,null,"Date"]
[]
[null,null,null,null,null,null,null,null,null,null,null,null,null,null,null,null,null,null,null,null,null,null,null,null,null,null,null,null,null,null,null,null,null,null,null,null,null,null,null,null,{"$f":"IF(Administration!I453<>\"\", Administration!I453, \"\")","v":""}]
[null,null,null,null,"Landlord",null,null,null,null,null,null,null,null,null,null,null,null,null,null,null,null,null,null,null,null,null,null,null,null,null,null,null,null,null,null,null,null,null,null,null,"Date"]
["Last edited"]
[{"$f":"LARGE(Sheet2!I452:I462,1)","v":"2024-03-14T09:42:23"}]
[{"$f":"Administration!A2","v":"Version 2.1"}]